Workbook

Sheet 全県
A1: 第4表 地域振興局別・資源構成表
A3: 全県 | O3: 単位 面積 : ha、蓄積 成長量 : ㎥
B4: 樹種 | C4: 針 葉 樹 | J4: 広 葉 樹 | O4: 計
C5: ス ギ | D5: ヒ ノ キ | E5: サ ワ ラ | F5: ア カ マ ツ | G5: カ ラ マ ツ | H5: そ の 他 針 | I5: 小 計 | J5: ク ヌ ギ | K5: ブ ナ | L5: ナ ラ | M5: そ の 他 広 | N5: 小 計
A6: 齢級
A7: 1 | B7: 面積 | C7: 28.02 | D7: 53.96 | E7: 0.4 | F7: 18.7 | G7: 873.16 | H7: 0 | I7: 974.24 | J7: 0 | K7: 0 | L7: 78.79 | M7: 250.15 | N7: 328.94 | O7: 1303.18
B8: 蓄積 | C8: 0 | D8: 0 | E8: 0 | F8: 0 | G8: 0 | H8: 0 | I8: 0 | J8: 0 | K8: 0 | L8: 0 | M8: 0 | N8: 0 | O8: 0
B9: 成長 | C9: 0 | D9: 0 | E9: 0 | F9: 0 | G9: 0 | H9: 0 | I9: 0 | J9: 0 | K9: 0 | L9: 0 | M9: 0 | N9: 0 | O9: 0
A10: 2 | B10: 面積 | C10: 12.43 | D10: 99.24 | E10: 0.31 | F10: 7.94 | G10: 580.5 | H10: 6.55 | I10: 706.97 | J10: 1.45 | K10: 0.53 | L10: 84.06 | M10: 690.78 | N10: 776.82 | O10: 1483.79
B11: 蓄積 | C11: 0 | D11: 0 | E11: 0 | F11: 0 | G11: 0 | H11: 0 | I11: 0 | J11: 32 | K11: 0 | L11: 998 | M11: 9063 | N11: 10093 | O11: 10093
B12: 成長 | C12: 0 | D12: 0 | E12: 0 | F12: 0 | G12: 0 | H12: 0 | I12: 0 | J12: 9.5 | K12: 0 | L12: 140.2 | M12: 1280.9 | N12: 1430.6 | O12: 1430.6
A13: 3 | B13: 面積 | C13: 17.58 | D13: 130.25 | E13: 2.13 | F13: 3.43 | G13: 65.97 | H13: 0.11 | I13: 219.47 | J13: 0 | K13: 9.06 | L13: 31.28 | M13: 312.6 | N13: 352.94 | O13: 572.41
B14: 蓄積 | C14: 1879 | D14: 7400 | E14: 118 | F14: 190 | G14: 8807 | H14: 16 | I14: 18410 | J14: 0 | K14: 54 | L14: 699 | M14: 6841 | N14: 7594 | O14: 26004
B15: 成長 | C15: 385.3 | D15: 1497.8 | E15: 22.7 | F15: 25.4 | G15: 794.5 | H15: 2.2 | I15: 2727.9 | J15: 0 | K15: 9.4 | L15: 59.9 | M15: 601.1 | N15: 670.4 | O15: 3398.3
A16: 4 | B16: 面積 | C16: 69 | D16: 672.33 | E16: 9.93 | F16: 14.45 | G16: 108.97 | H16: 2.56 | I16: 877.24 | J16: 12.13 | K16: 0.76 | L16: 57.23 | M16: 621.95 | N16: 692.07 | O16: 1569.31
B17: 蓄積 | C17: 7579 | D17: 51357 | E17: 807 | F17: 1187 | G17: 12209 | H17: 115 | I17: 73254 | J17: 422 | K17: 13 | L17: 1803 | M17: 19519 | N17: 21757 | O17: 95011
B18: 成長 | C18: 855.6 | D18: 4882.3 | E18: 76.4 | F18: 97.5 | G18: 742.3 | H18: 9.4 | I18: 6663.5 | J18: 21 | K18: 1.2 | L18: 121.7 | M18: 1315.8 | N18: 1459.7 | O18: 8123.2
A19: 5 | B19: 面積 | C19: 118.05 | D19: 945.23 | E19: 0.56 | F19: 41.97 | G19: 137.48 | H19: 11.61 | I19: 1254.9 | J19: 10.05 | K19: 15.14 | L19: 67.79 | M19: 907.76 | N19: 1000.74 | O19: 2255.64
B20: 蓄積 | C20: 23470 | D20: 118413 | E20: 64 | F20: 6777 | G20: 19577 | H20: 2917 | I20: 171218 | J20: 578 | K20: 448 | L20: 3562 | M20: 39581 | N20: 44169 | O20: 215387
B21: 成長 | C21: 1608.5 | D21: 7283.9 | E21: 3.7 | F21: 351.6 | G21: 934.9 | H21: 197.4 | I21: 10380 | J21: 20.1 | K21: 35.5 | L21: 182.3 | M21: 2054.4 | N21: 2292.3 | O21: 12672.3
A22: 6 | B22: 面積 | C22: 278.21 | D22: 1799.01 | E22: 1.48 | F22: 66.27 | G22: 321.75 | H22: 48.11 | I22: 2514.83 | J22: 15.97 | K22: 2.55 | L22: 189.14 | M22: 2208.53 | N22: 2416.19 | O22: 4931.02
B23: 蓄積 | C23: 73214 | D23: 297686 | E23: 921 | F23: 9124 | G23: 55952 | H23: 9766 | I23: 446663 | J23: 1215 | K23: 435 | L23: 11979 | M23: 108972 | N23: 122601 | O23: 569264
B24: 成長 | C24: 3468.7 | D24: 13419.1 | E24: 49.9 | F24: 356.4 | G24: 1469.5 | H24: 512.4 | I24: 19276 | J24: 31.2 | K24: 28.9 | L24: 479.1 | M24: 4370.3 | N24: 4909.5 | O24: 24185.5
A25: 7 | B25: 面積 | C25: 642.94 | D25: 3092.22 | E25: 1.99 | F25: 226.58 | G25: 582.07 | H25: 90.61 | I25: 4636.41 | J25: 46.91 | K25: 21.6 | L25: 325.56 | M25: 4007.64 | N25: 4401.71 | O25: 9038.12
B26: 蓄積 | C26: 188983 | D26: 564358 | E26: 544 | F26: 34869 | G26: 123606 | H26: 15875 | I26: 928235 | J26: 3539 | K26: 2024 | L26: 21131 | M26: 229761 | N26: 256455 | O26: 1184690
B27: 成長 | C27: 7089.4 | D27: 20416.3 | E27: 20.4 | F27: 904.4 | G27: 2844.1 | H27: 704.7 | I27: 31979.3 | J27: 54.4 | K27: 116.6 | L27: 664 | M27: 7173.8 | N27: 8008.8 | O27: 39988.1
A28: 8 | B28: 面積 | C28: 1424.33 | D28: 4466.16 | E28: 5.03 | F28: 302.29 | G28: 1146.05 | H28: 232.44 | I28: 7576.3 | J28: 77.57 | K28: 12.01 | L28: 568.56 | M28: 4481.66 | N28: 5139.8 | O28: 12716.1
B29: 蓄積 | C29: 466093 | D29: 872709 | E29: 712 | F29: 51708 | G29: 241842 | H29: 43240 | I29: 1676304 | J29: 6069 | K29: 653 | L29: 39670 | M29: 295054 | N29: 341446 | O29: 2017750
B30: 成長 | C30: 14723.1 | D30: 24328.2 | E30: 23.1 | F30: 1115.1 | G30: 5355.6 | H30: 1623.1 | I30: 47168.2 | J30: 61 | K30: 27.7 | L30: 1186.7 | M30: 8836.2 | N30: 10111.6 | O30: 57279.8
A31: 9 | B31: 面積 | C31: 2808.65 | D31: 6726.85 | E31: 4.58 | F31: 927.36 | G31: 2170.35 | H31: 397.31 | I31: 13035.1 | J31: 77.33 | K31: 28.75 | L31: 540.03 | M31: 4513.15 | N31: 5159.26 | O31: 18194.36
B32: 蓄積 | C32: 1049808 | D32: 1397887 | E32: 917 | F32: 172045 | G32: 503840 | H32: 48879 | I32: 3173376 | J32: 6484 | K32: 1744 | L32: 43178 | M32: 341787 | N32: 393193 | O32: 3566569
B33: 成長 | C33: 23246.4 | D33: 32632.2 | E33: 21.5 | F33: 2646.8 | G33: 9429.8 | H33: 1610.3 | I33: 69587 | J33: 41.4 | K33: 61.9 | L33: 1193.2 | M33: 9359.5 | N33: 10656 | O33: 80243
A34: 10 | B34: 面積 | C34: 3842.57 | D34: 7802.84 | E34: 12.63 | F34: 3026.71 | G34: 5502.26 | H34: 711.36 | I34: 20898.37 | J34: 87.77 | K34: 67.81 | L34: 461.7 | M34: 5962.99 | N34: 6580.27 | O34: 27478.64
B35: 蓄積 | C35: 1518343 | D35: 1718443 | E35: 2893 | F35: 600224 | G35: 1368734 | H35: 88764 | I35: 5297401 | J35: 7460 | K35: 3885 | L35: 40999 | M35: 498881 | N35: 551225 | O35: 5848626
B36: 成長 | C36: 25366 | D36: 32648 | E36: 54.6 | F36: 7939.2 | G36: 20892.9 | H36: 2505.9 | I36: 89406.6 | J36: 25.9 | K36: 119.7 | L36: 1021.2 | M36: 12483.2 | N36: 13650 | O36: 103056.6
A37: 11 | B37: 面積 | C37: 6039.08 | D37: 6947.05 | E37: 30.84 | F37: 8513.93 | G37: 10980.03 | H37: 688.62 | I37: 33199.55 | J37: 54.21 | K37: 188.54 | L37: 537.36 | M37: 9757.89 | N37: 10538 | O37: 43737.55
B38: 蓄積 | C38: 2517062 | D38: 1682806 | E38: 6596 | F38: 1795487 | G38: 2920138 | H38: 96186 | I38: 9018275 | J38: 4797 | K38: 12096 | L38: 53008 | M38: 854172 | N38: 924073 | O38: 9942348 | P38: 伐 跡 | R38: 881.16
B39: 成長 | C39: 31689.4 | D39: 27947.8 | E39: 110.2 | F39: 20067.4 | G39: 38568.6 | H39: 2208.6 | I39: 120592 | J39: 10.7 | K39: 317 | L39: 1042.7 | M39: 16458.3 | N39: 17828.7 | O39: 138420.7 | P39: 未立木地 | R39: 6022.59
A40: 12 | B40: 面積 | C40: 8476.87 | D40: 3814.29 | E40: 34.18 | F40: 16751.86 | G40: 27572.42 | H40: 368.76 | I40: 57018.38 | J40: 89.58 | K40: 257.14 | L40: 868.03 | M40: 14537.67 | N40: 15752.42 | O40: 72770.8 | P40: 岩石地 | R40: 4371.98
B41: 蓄積 | C41: 3700532 | D41: 991095 | E41: 9381 | F41: 3702056 | G41: 7674592 | H41: 56030 | I41: 16133686 | J41: 7908 | K41: 22328 | L41: 89024 | M41: 1406419 | N41: 1525679 | O41: 17659365 | P41: 崩壊地 | R41: 4439.77
B42: 成長 | C42: 42040.7 | D42: 13736.6 | E42: 141.4 | F42: 36210.3 | G42: 89199.2 | H42: 1091.8 | I42: 182420 | J42: 16.8 | K42: 512.3 | L42: 1692.8 | M42: 26284.1 | N42: 28506 | O42: 210926 | P42: はげ山 | R42: 109.84
A43: 13 | B43: 面積 | C43: 9697.31 | D43: 2958.98 | E43: 59.3 | F43: 14997.01 | G43: 45167.66 | H43: 856.34 | I43: 73736.6 | J43: 312.37 | K43: 481.46 | L43: 1809.33 | M43: 25141.37 | N43: 27744.53 | O43: 101481.13 | P43: 施設敷 | R43: 1718.17
B44: 蓄積 | C44: 4317202 | D44: 795493 | E44: 16491 | F44: 3401149 | G44: 12836864 | H44: 125704 | I44: 21492903 | J44: 27646 | K44: 37376 | L44: 200462 | M44: 2669876 | N44: 2935360 | O44: 24428263 | P44: 林地開発 | R44: 310.54
B45: 成長 | C45: 46533.1 | D45: 10667.1 | E45: 242.2 | F45: 32105 | G45: 143897.9 | H45: 2360.2 | I45: 235805.5 | J45: 82 | K45: 854.3 | L45: 3048.2 | M45: 41228.4 | N45: 45212.9 | O45: 281018.4 | P45: 計 | R45: 17854.05
A46: 14 | B46: 面積 | C46: 8239.02 | D46: 2445.45 | E46: 133.6 | F46: 11526.4 | G46: 44044.81 | H46: 700.6 | I46: 67089.88 | J46: 742.76 | K46: 301.72 | L46: 3430.54 | M46: 40459.04 | N46: 44934.06 | O46: 112023.94 | P46: 竹 林 | R46: 1516.69
B47: 蓄積 | C47: 3737856 | D47: 676747 | E47: 35404 | F47: 2715434 | G47: 13155973 | H47: 118307 | I47: 20439721 | J47: 67030 | K47: 32232 | L47: 400387 | M47: 4563619 | N47: 5063268 | O47: 25502989 | P47: 更新 困難地 | Q47: 面積 | R47: 507.76
B48: 成長 | C48: 33192.2 | D48: 8163.7 | E48: 465.4 | F48: 21667.7 | G48: 124698.1 | H48: 1968.2 | I48: 190155.3 | J48: 150.2 | K48: 599.8 | L48: 4526.2 | M48: 52392.6 | N48: 57668.8 | O48: 247824.1 | Q48: 蓄積 | R48: 94033
A49: 15 以上 | B49: 面積 | C49: 13582.2 | D49: 9017.05 | E49: 745.8 | F49: 34307.02 | G49: 39023.24 | H49: 11156.48 | I49: 107831.79 | J49: 967.98 | K49: 4748.52 | L49: 9220.37 | M49: 135863.76 | N49: 150800.63 | O49: 258632.42 | Q49: 成長 | R49: 168
B50: 蓄積 | C50: 6809316 | D50: 2709887 | E50: 226314 | F50: 8714564 | G50: 12013281 | H50: 2501065 | I50: 32974427 | J50: 90628 | K50: 632349 | L50: 1130577 | M50: 15981533 | N50: 17835087 | O50: 50809514
B51: 成長 | C51: 27250.8 | D51: 7805.7 | E51: 476.2 | F51: 38212.3 | G51: 64128.6 | H51: 11178.8 | I51: 149052.4 | J51: 214 | K51: 3016.4 | L51: 6626.4 | M51: 75517.2 | N51: 85374 | O51: 234426.4 | P51: 総 合 計
A52: 計 | B52: 面積 | C52: 55276.26 | D52: 50970.91 | E52: 1042.76 | F52: 90731.92 | G52: 178276.72 | H52: 15271.46 | I52: 391570.03 | J52: 2496.08 | K52: 6135.59 | L52: 18269.77 | M52: 249716.94 | N52: 276618.38 | O52: 668188.41 | P52: 面 積 | R52: 688066.91
B53: 蓄積 | C53: 24411337 | D53: 11884281 | E53: 301162 | F53: 21204814 | G53: 50935415 | H53: 3106864 | I53: 111843873 | J53: 223808 | K53: 745637 | L53: 2037477 | M53: 27025078 | N53: 30032000 | O53: 141875873 | P53: 蓄 積 | R53: 141969906
B54: 成長 | C54: 257449.2 | D54: 205428.7 | E54: 1707.7 | F54: 161699.1 | G54: 502956 | H54: 25973 | I54: 1155213.7 | J54: 738.2 | K54: 5700.7 | L54: 21984.6 | M54: 259355.8 | N54: 287779.3 | O54: 1442993 | P54: 成長量 | R54: 1443161

Sheet 佐久
A1: 第4表 地域振興局別・資源構成表
A3: 佐久地域振興局 | O3: 単位 面積 : ha、蓄積 成長量 : ㎥
B4: 樹種 | C4: 針 葉 樹 | J4: 広 葉 樹 | O4: 計
C5: ス ギ | D5: ヒ ノ キ | E5: サ ワ ラ | F5: ア カ マ ツ | G5: カ ラ マ ツ | H5: そ の 他 針 | I5: 小 計 | J5: ク ヌ ギ | K5: ブ ナ | L5: ナ ラ | M5: そ の 他 広 | N5: 小 計
A6: 齢級
A7: 1 | B7: 面積 | D7: 6.45 | F7: 2.65 | G7: 470.72 | I7: 479.82 | L7: 8.96 | M7: 87.36 | N7: 96.32 | O7: 576.14
B8: 蓄積 | D8: 0 | F8: 0 | G8: 0 | I8: 0 | L8: 0 | M8: 0 | N8: 0 | O8: 0
B9: 成長 | D9: 0 | F9: 0 | G9: 0 | I9: 0 | L9: 0 | M9: 0 | N9: 0 | O9: 0
A10: 2 | B10: 面積 | C10: 0.09 | D10: 11.07 | E10: 0.31 | F10: 1.08 | G10: 349.03 | H10: 0.43 | I10: 362.01 | K10: 0.43 | L10: 13.3 | M10: 170.42 | N10: 184.15 | O10: 546.16
B11: 蓄積 | C11: 0 | D11: 0 | E11: 0 | F11: 0 | G11: 0 | H11: 0 | I11: 0 | K11: 0 | L11: 192 | M11: 2263 | N11: 2455 | O11: 2455
B12: 成長 | C12: 0 | D12: 0 | E12: 0 | F12: 0 | G12: 0 | H12: 0 | I12: 0 | K12: 0 | L12: 27.8 | M12: 326.8 | N12: 354.6 | O12: 354.6
A13: 3 | B13: 面積 | C13: 0.01 | D13: 16.94 | F13: 0.43 | G13: 25.9 | I13: 43.28 | L13: 7.92 | M13: 50.84 | N13: 58.76 | O13: 102.04
B14: 蓄積 | C14: 1 | D14: 736 | F14: 26 | G14: 3306 | H14: 15 | I14: 4084 | L14: 180 | M14: 1082 | N14: 1262 | O14: 5346
B15: 成長 | C15: 0.2 | D15: 161.6 | F15: 3.4 | G15: 254.8 | H15: 2 | I15: 422 | L15: 15.5 | M15: 93.6 | N15: 109.1 | O15: 531.1
A16: 4 | B16: 面積 | C16: 0.15 | D16: 32.59 | E16: 0.4 | F16: 0.1 | G16: 51.41 | I16: 84.65 | L16: 14.64 | M16: 141.15 | N16: 155.79 | O16: 240.44
B17: 蓄積 | C17: 27 | D17: 3616 | E17: 23 | F17: 10 | G17: 5859 | I17: 9535 | L17: 436 | M17: 4620 | N17: 5056 | O17: 14591
B18: 成長 | C18: 2.2 | D18: 384 | E18: 2.6 | F18: 0.8 | G18: 348.1 | I18: 737.7 | L18: 29.6 | M18: 313 | N18: 342.6 | O18: 1080.3
A19: 5 | B19: 面積 | C19: 0.73 | D19: 45.12 | F19: 6.6 | G19: 18.02 | H19: 2.13 | I19: 72.6 | J19: 0.87 | L19: 12.13 | M19: 126.82 | N19: 139.82 | O19: 212.42
B20: 蓄積 | C20: 158 | D20: 5503 | F20: 781 | G20: 3009 | H20: 578 | I20: 10029 | J20: 37 | L20: 655 | M20: 5679 | N20: 6371 | O20: 16400
B21: 成長 | C21: 8.1 | D21: 391.2 | F21: 39.6 | G21: 139.4 | H21: 41 | I21: 619.3 | J21: 2 | L21: 34.1 | M21: 296.9 | N21: 333 | O21: 952.3
A22: 6 | B22: 面積 | C22: 2.29 | D22: 55.29 | E22: 0.67 | F22: 12.98 | G22: 62.94 | H22: 6.23 | I22: 140.4 | J22: 1.01 | L22: 28.85 | M22: 253.75 | N22: 283.61 | O22: 424.01
B23: 蓄積 | C23: 1100 | D23: 16584 | E23: 834 | F23: 1759 | G23: 12791 | H23: 3577 | I23: 36645 | J23: 54 | L23: 1433 | M23: 13393 | N23: 14880 | O23: 51525
B24: 成長 | C24: 39.5 | D24: 916.2 | E24: 45.9 | F24: 67.3 | G24: 295.7 | H24: 189.6 | I24: 1554.2 | J24: 2.2 | L24: 58.3 | M24: 545.9 | N24: 606.4 | O24: 2160.6
A25: 7 | B25: 面積 | C25: 3.25 | D25: 165.51 | E25: 0.54 | F25: 14.48 | G25: 238.56 | H25: 25.55 | I25: 447.89 | J25: 1.59 | K25: 0.44 | L25: 42.5 | M25: 536.09 | N25: 580.62 | O25: 1028.51
B26: 蓄積 | C26: 1169 | D26: 37270 | E26: 215 | F26: 2184 | G26: 54259 | H26: 6939 | I26: 102036 | J26: 96 | K26: 20 | L26: 3108 | M26: 30451 | N26: 33675 | O26: 135711
B27: 成長 | C27: 32.7 | D27: 1679.9 | E27: 9.7 | F27: 55.5 | G27: 1199.4 | H27: 301.1 | I27: 3278.3 | J27: 3 | K27: 1.1 | L27: 95.8 | M27: 943.8 | N27: 1043.7 | O27: 4322
A28: 8 | B28: 面積 | C28: 7.44 | D28: 113.17 | E28: 0.53 | F28: 36.81 | G28: 306.11 | H28: 11.63 | I28: 475.69 | J28: 0.27 | K28: 0.04 | L28: 53.92 | M28: 438.56 | N28: 492.79 | O28: 968.48
B29: 蓄積 | C29: 2596 | D29: 38058 | E29: 123 | F29: 6515 | G29: 69746 | H29: 13556 | I29: 130594 | J29: 19 | K29: 2 | L29: 3805 | M29: 28703 | N29: 32529 | O29: 163123
B30: 成長 | C30: 59.8 | D30: 1410 | E30: 4.5 | F30: 131.9 | G30: 1471.7 | H30: 518.2 | I30: 3596.1 | J30: 0.7 | K30: 0.1 | L30: 114.3 | M30: 866.2 | N30: 981.3 | O30: 4577.4
A31: 9 | B31: 面積 | C31: 17.35 | D31: 298.51 | E31: 0.71 | F31: 163.41 | G31: 858.95 | H31: 43.38 | I31: 1382.31 | J31: 0.54 | L31: 76.35 | M31: 489.77 | N31: 566.66 | O31: 1948.97
B32: 蓄積 | C32: 5755 | D32: 77919 | E32: 159 | F32: 31096 | G32: 231041 | H32: 8974 | I32: 354944 | J32: 44 | L32: 5976 | M32: 38244 | N32: 44264 | O32: 399208
B33: 成長 | C33: 107.4 | D33: 2356.9 | E33: 4.8 | F33: 470.5 | G33: 4214.1 | H33: 319.5 | I33: 7473.2 | J33: 1.2 | L33: 166 | M33: 1064.7 | N33: 1231.9 | O33: 8705.1
A34: 10 | B34: 面積 | C34: 15.97 | D34: 80.83 | E34: 0.7 | F34: 343.12 | G34: 1727.61 | H34: 30.08 | I34: 2198.31 | J34: 0.86 | L34: 60.7 | M34: 480.11 | N34: 541.67 | O34: 2739.98
B35: 蓄積 | C35: 6354 | D35: 23675 | E35: 194 | F35: 71780 | G35: 505036 | H35: 5658 | I35: 612697 | J35: 81 | L35: 5612 | M35: 42213 | N35: 47906 | O35: 660603
B36: 成長 | C36: 95.4 | D36: 685.1 | E36: 5.5 | F36: 933.9 | G36: 7609 | H36: 166.3 | I36: 9495.2 | J36: 2.1 | L36: 142.5 | M36: 1069.1 | N36: 1213.7 | O36: 10708.9
A37: 11 | B37: 面積 | C37: 55 | D37: 61.97 | E37: 0.47 | F37: 691.63 | G37: 3614.33 | H37: 80.01 | I37: 4503.41 | J37: 1.84 | L37: 100.17 | M37: 623.93 | N37: 725.94 | O37: 5229.35
B38: 蓄積 | C38: 22346 | D38: 21392 | E38: 170 | F38: 149748 | G38: 1096607 | H38: 16323 | I38: 1306586 | J38: 181 | L38: 9983 | M38: 58731 | N38: 68895 | O38: 1375481 | P38: 伐 跡 | R38: 261.88
B39: 成長 | C39: 290.4 | D39: 513.8 | E39: 4.1 | F39: 1659 | G39: 13202.5 | H39: 393.7 | I39: 16063.5 | J39: 3.5 | L39: 197.3 | M39: 1150 | N39: 1350.8 | O39: 17414.3 | P39: 未立木地 | R39: 391.89
A40: 12 | B40: 面積 | C40: 90.39 | D40: 8.98 | E40: 0.65 | F40: 1020.38 | G40: 6290.81 | H40: 48.61 | I40: 7459.82 | J40: 1.39 | L40: 142.36 | M40: 1068.42 | N40: 1212.17 | O40: 8671.99 | P40: 岩石地 | R40: 565.01
B41: 蓄積 | C41: 38234 | D41: 3111 | E41: 256 | F41: 234129 | G41: 2013917 | H41: 11644 | I41: 2301291 | J41: 121 | L41: 14663 | M41: 105424 | N41: 120208 | O41: 2421499 | P41: 崩壊地 | R41: 184.77
B42: 成長 | C42: 423.1 | D42: 65.8 | E42: 5.3 | F42: 2128.3 | G42: 18521.8 | H42: 238 | I42: 21382.3 | J42: 2.2 | L42: 285.4 | M42: 2023.8 | N42: 2311.4 | O42: 23693.7 | P42: はげ山 | R42: 1.86
A43: 13 | B43: 面積 | C43: 129.53 | D43: 5.87 | E43: 5.33 | F43: 732.14 | G43: 9800.97 | H43: 30.94 | I43: 10704.78 | J43: 4.55 | L43: 312.17 | M43: 1951.48 | N43: 2268.2 | O43: 12972.98 | P43: 施設敷 | R43: 298.08
B44: 蓄積 | C44: 56301 | D44: 2004 | E44: 1951 | F44: 171140 | G44: 3219881 | H44: 7924 | I44: 3459201 | J44: 502 | L44: 33655 | M44: 209046 | N44: 243203 | O44: 3702404 | P44: 林地開発
B45: 成長 | C45: 609.6 | D45: 42.3 | E45: 39 | F45: 1526.6 | G45: 28320.5 | H45: 157 | I45: 30695 | J45: 8.2 | L45: 531.2 | M45: 3343.2 | N45: 3882.6 | O45: 34577.6 | P45: 計 | R45: =SUM(R38:R44) -> 1703.49
A46: 14 | B46: 面積 | C46: 41.05 | D46: 4.46 | E46: 15.31 | F46: 540.25 | G46: 9511.38 | H46: 68.64 | I46: 10181.09 | J46: 6.13 | L46: 525.62 | M46: 3785.4 | N46: 4317.15 | O46: 14498.24 | P46: 竹 林 | R46: 29.79
B47: 蓄積 | C47: 18670 | D47: 1859 | E47: 4770 | F47: 127327 | G47: 3245365 | H47: 18942 | I47: 3416933 | J47: 677 | L47: 60482 | M47: 423149 | N47: 484308 | O47: 3901241 | P47: 更新 困難地 | Q47: 面積 | R47: 120.72
B48: 成長 | C48: 170.4 | D48: 33.4 | E48: 86.7 | F48: 1013.5 | G48: 23139.9 | H48: 325.2 | I48: 24769.1 | J48: 7.8 | L48: 699.1 | M48: 4935.1 | N48: 5642 | O48: 30411.1 | Q48: 蓄積 | R48: 20843
A49: 15 以上 | B49: 面積 | C49: 81.36 | D49: 124.11 | E49: 63.55 | F49: 2058.21 | G49: 9003.33 | H49: 1169.85 | I49: 12500.41 | J49: 14.78 | L49: 1140.7 | M49: 10847.87 | N49: 12003.35 | O49: 24503.76 | Q49: 成長 | R49: 84.9
B50: 蓄積 | C50: 38811 | D50: 58197 | E50: 27197 | F50: 515157 | G50: 3079709 | H50: 440193 | I50: 4159264 | J50: 1802 | L50: 139333 | M50: 1278640 | N50: 1419775 | O50: 5579039
B51: 成長 | C51: 48.4 | D51: 89.4 | E51: 78.8 | F51: 1844 | G51: 12285.6 | H51: 2329.3 | I51: 16675.5 | J51: 13.3 | L51: 867.4 | M51: 6670.3 | N51: 7551 | O51: 24226.5 | P51: 総 合 計
A52: 計 | B52: 面積 | C52: =SUM(C7,C10,C13,C16,C19,C22,C25,C28,C31,C34,C37,C40,C43,C46,C49) -> 444.61 | D52: =SUM(D7,D10,D13,D16,D19,D22,D25,D28,D31,D34,D37,D40,D43,D46,D49) -> 1030.87 | E52: 89.17 | F52: 5624.27 | G52: 42330.07 | H52: 1517.48 | I52: =SUM(C52:H52) -> 51036.47 | J52: =SUM(J7,J10,J13,J16,J19,J22,J25,J28,J31,J34,J37,J40,J43,J46,J49) -> 33.83 | K52: =SUM(K7,K10,K13,K16,K19,K22,K25,K28,K31,K34,K37,K40,K43,K46,K49) -> 0.91 | L52: =SUM(L7,L10,L13,L16,L19,L22,L25,L28,L31,L34,L37,L40,L43,L46,L49) -> 2540.29 | M52: =SUM(M7,M10,M13,M16,M19,M22,M25,M28,M31,M34,M37,M40,M43,M46,M49) -> 21051.97 | N52: =SUM(J52:M52) -> 23627 | O52: =SUM(N52,I52) -> 74663.47 | P52: 面 積 | R52: =SUM(O52,R45,R47,R46) -> 76517.47
B53: 蓄積 | C53: 191522 | D53: 289924 | E53: 35892 | F53: 1311652 | G53: 13540526 | H53: 534323 | I53: =SUM(C53:H53) -> 15903839 | J53: =SUM(J8,J11,J14,J17,J20,J23,J26,J29,J32,J35,J38,J41,J44,J47,J50) -> 3614 | K53: 22 | L53: 279513 | M53: 2241638 | N53: =SUM(J53:M53) -> 2524787 | O53: =SUM(N53,I53) -> 18428626 | P53: 蓄 積 | R53: =O53+R48 -> 18449469
B54: 成長 | C54: 1887.2 | D54: 8729.6 | E54: 286.9 | F54: 9874.3 | G54: 111002.5 | H54: 4980.9 | I54: =SUM(C54:H54) -> 136761.4 | J54: 46.2 | K54: 1.2 | L54: 3264.3 | M54: 23642.4 | N54: =SUM(J54:M54) -> 26954.1 | O54: =SUM(N54,I54) -> 163715.5 | P54: 成長量 | R54: =O54+R49 -> 163800.4

Sheet 上田
A1: 第4表 地域振興局別・資源構成表
A3: 上田地域振興局 | O3: 単位 面積 : ha、蓄積 成長量 : ㎥
B4: 樹種 | C4: 針 葉 樹 | J4: 広 葉 樹 | O4: 計
C5: ス ギ | D5: ヒ ノ キ | E5: サ ワ ラ | F5: ア カ マ ツ | G5: カ ラ マ ツ | H5: そ の 他 針 | I5: 小 計 | J5: ク ヌ ギ | K5: ブ ナ | L5: ナ ラ | M5: そ の 他 広 | N5: 小 計
A6: 齢級
A7: 1 | B7: 面積 | C7: 0.07 | D7: 0.03 | F7: 0.21 | G7: 199.57 | I7: 199.88 | L7: 9.53 | M7: 33.54 | N7: 43.07 | O7: 242.95
B8: 蓄積 | C8: 0 | D8: 0 | F8: 0 | G8: 0 | I8: 0 | L8: 0 | M8: 0 | N8: 0 | O8: 0
B9: 成長 | C9: 0 | D9: 0 | F9: 0 | G9: 0 | I9: 0 | L9: 0 | M9: 0 | N9: 0 | O9: 0
A10: 2 | B10: 面積 | D10: 9.15 | G10: 95.12 | H10: 1.08 | I10: 105.35 | K10: 0.1 | L10: 5.34 | M10: 202.87 | N10: 208.31 | O10: 313.66
B11: 蓄積 | D11: 0 | G11: 0 | H11: 0 | I11: 0 | K11: 0 | L11: 73 | M11: 2809 | N11: 2882 | O11: 2882
B12: 成長 | D12: 0 | G12: 0 | H12: 0 | I12: 0 | K12: 0 | L12: 10.4 | M12: 403.5 | N12: 413.9 | O12: 413.9
A13: 3 | B13: 面積 | D13: 5.35 | F13: 0.22 | G13: 8.38 | I13: 13.95 | L13: 9.34 | M13: 42.46 | N13: 51.8 | O13: 65.75
B14: 蓄積 | D14: 191 | F14: 7 | G14: 588 | I14: 786 | L14: 199 | M14: 864 | N14: 1063 | O14: 1849
B15: 成長 | D15: 42.6 | F15: 0.9 | G15: 54.1 | I15: 97.6 | L15: 17 | M15: 74.3 | N15: 91.3 | O15: 188.9
A16: 4 | B16: 面積 | C16: 0.54 | D16: 57.36 | F16: 1.55 | G16: 16.44 | H16: 0.59 | I16: 76.48 | J16: 1.95 | L16: 4.03 | M16: 73.83 | N16: 79.81 | O16: 156.29
B17: 蓄積 | C17: 96 | D17: 4520 | F17: 138 | G17: 2341 | H17: 33 | I17: 7128 | J17: 67 | L17: 123 | M17: 2520 | N17: 2710 | O17: 9838
B18: 成長 | C18: 7.8 | D18: 477 | F18: 11.3 | G18: 137.7 | H18: 2.7 | I18: 636.5 | J18: 4.4 | L18: 9.1 | M18: 171.4 | N18: 184.9 | O18: 821.4
A19: 5 | B19: 面積 | C19: 0.85 | D19: 59.65 | F19: 6.42 | G19: 42.85 | I19: 109.77 | J19: 1.22 | K19: 3.02 | L19: 15.12 | M19: 86.62 | N19: 105.98 | O19: 215.75
B20: 蓄積 | C20: 187 | D20: 7821 | F20: 411 | G20: 7394 | I20: 15813 | J20: 51 | K20: 75 | L20: 1077 | M20: 3904 | N20: 5107 | O20: 20920
B21: 成長 | C21: 9 | D21: 555.5 | F21: 25.3 | G21: 340.9 | I21: 930.7 | J21: 2.6 | K21: 5.9 | L21: 55.3 | M21: 202.1 | N21: 265.9 | O21: 1196.6
A22: 6 | B22: 面積 | C22: 7.18 | D22: 67.61 | F22: 7.64 | G22: 55.09 | H22: 1.74 | I22: 139.26 | J22: 0.85 | L22: 48.62 | M22: 160.3 | N22: 209.77 | O22: 349.03
B23: 蓄積 | C23: 2274 | D23: 16969 | F23: 1141 | G23: 12083 | H23: 180 | I23: 32647 | J23: 139 | K23: 171 | L23: 2559 | M23: 8531 | N23: 11400 | O23: 44047
B24: 成長 | C24: 81.8 | D24: 938 | F24: 42.3 | G24: 277.5 | H24: 9.6 | I24: 1349.2 | J24: 5.7 | K24: 11.5 | L24: 104.6 | M24: 348.6 | N24: 470.4 | O24: 1819.6
A25: 7 | B25: 面積 | C25: 24.53 | D25: 269.66 | F25: 38.37 | G25: 132.6 | H25: 2.04 | I25: 467.2 | J25: 2.43 | L25: 65.02 | M25: 367.32 | N25: 434.77 | O25: 901.97
B26: 蓄積 | C26: 14329 | D26: 59295 | F26: 6228 | G26: 31488 | H26: 397 | I26: 111737 | J26: 136 | K26: 1343 | L26: 4251 | M26: 22365 | N26: 28095 | O26: 139832
B27: 成長 | C27: 398.5 | D27: 2669.8 | F27: 149.3 | G27: 692.6 | H27: 17.1 | I27: 3927.3 | J27: 4 | K27: 77.9 | L27: 131.9 | M27: 694.3 | N27: 908.1 | O27: 4835.4
A28: 8 | B28: 面積 | C28: 53.17 | D28: 216.13 | F28: 51.84 | G28: 164.69 | H28: 27.34 | I28: 513.17 | J28: 4.27 | L28: 122.69 | M28: 475.99 | N28: 602.95 | O28: 1116.12
B29: 蓄積 | C29: 18859 | D29: 57997 | F29: 9487 | G29: 42264 | H29: 4641 | I29: 133248 | J29: 302 | L29: 8547 | M29: 32040 | N29: 40889 | O29: 174137
B30: 成長 | C30: 434 | D30: 2149.2 | F30: 190.7 | G30: 888.2 | H30: 176.9 | I30: 3839 | J30: 9 | L30: 258.7 | M30: 966 | N30: 1233.7 | O30: 5072.7
A31: 9 | B31: 面積 | C31: 81.06 | D31: 456.74 | F31: 124.08 | G31: 154.08 | H31: 16.64 | I31: 832.6 | J31: 5.2 | L31: 77.14 | M31: 345.56 | N31: 427.9 | O31: 1260.5
B32: 蓄積 | C32: 30266 | D32: 121925 | F32: 24356 | G32: 42761 | H32: 3393 | I32: 222701 | J32: 414 | L32: 6217 | M32: 27043 | N32: 33674 | O32: 256375
B33: 成長 | C33: 544.8 | D33: 3671.8 | F33: 367.4 | G33: 769.9 | H33: 118.7 | I33: 5472.6 | J33: 12 | L33: 174.4 | M33: 759.2 | N33: 945.6 | O33: 6418.2
A34: 10 | B34: 面積 | C34: 151.43 | D34: 274.18 | F34: 366.62 | G34: 241.82 | H34: 10.2 | I34: 1044.25 | J34: 3.97 | L34: 43.65 | M34: 453.67 | N34: 501.29 | O34: 1545.54
B35: 蓄積 | C35: 59723 | D35: 79819 | F35: 76783 | G35: 73145 | H35: 4744 | I35: 294214 | J35: 337 | L35: 4043 | M35: 40198 | N35: 44578 | O35: 338792
B36: 成長 | C36: 897.9 | D36: 2312.4 | F36: 1000.2 | G36: 1097.5 | H36: 141.5 | I36: 5449.5 | J36: 8.4 | L36: 103 | M36: 1021.9 | N36: 1133.3 | O36: 6582.8
A37: 11 | B37: 面積 | C37: 248.8 | D37: 170.65 | E37: 0.1 | F37: 920.31 | G37: 566.23 | H37: 19.54 | I37: 1925.63 | J37: 3.63 | L37: 49.28 | M37: 363.13 | N37: 416.04 | O37: 2341.67
B38: 蓄積 | C38: 104796 | D38: 56445 | E38: 35 | F38: 202226 | G38: 177794 | H38: 4308 | I38: 545604 | J38: 361 | L38: 4893 | M38: 35187 | N38: 40441 | O38: 586045 | P38: 伐 跡 | R38: 116.46
B39: 成長 | C39: 1365.5 | D39: 1356.3 | E39: 0.8 | F39: 2230.1 | G39: 2137.2 | H39: 101 | I39: 7190.9 | J39: 7.2 | L39: 97.2 | M39: 694.9 | N39: 799.3 | O39: 7990.2 | P39: 未立木地 | R39: 167.57
A40: 12 | B40: 面積 | C40: 246.38 | D40: 85.82 | E40: 3.06 | F40: 1712.67 | G40: 1780.38 | H40: 17.39 | I40: 3845.7 | J40: 6.96 | L40: 53.36 | M40: 586.42 | N40: 646.74 | O40: 4492.44 | P40: 岩石地 | R40: 173.35
B41: 蓄積 | C41: 109394 | D41: 31287 | E41: 1149 | F41: 394674 | G41: 592679 | H41: 4584 | I41: 1133767 | J41: 750 | L41: 5680 | M41: 59611 | N41: 66041 | O41: 1199808 | P41: 崩壊地 | R41: 66.13
B42: 成長 | C42: 1204.4 | D42: 658.1 | E42: 24 | F42: 3563 | G42: 5374.6 | H42: 91.8 | I42: 10915.9 | J42: 14.6 | L42: 110.6 | M42: 1155.6 | N42: 1280.8 | O42: 12196.7 | P42: はげ山 | R42: 1.94
A43: 13 | B43: 面積 | C43: 344.84 | D43: 23.05 | E43: 2.34 | F43: 1678.39 | G43: 3426.46 | H43: 30.49 | I43: 5505.57 | J43: 42.71 | L43: 93.16 | M43: 1116.59 | N43: 1252.46 | O43: 6758.03 | P43: 施設敷 | R43: 362.4
B44: 蓄積 | C44: 156568 | D44: 8614 | E44: 831 | F44: 394083 | G44: 1166191 | H44: 7619 | I44: 1733906 | J44: 4581 | L44: 10725 | M44: 126121 | N44: 141427 | O44: 1875333 | P44: 林地開発 | R44: 20.12
B45: 成長 | C45: 1674.3 | D45: 179.5 | E45: 17.6 | F45: 3518.3 | G45: 10192.4 | H45: 149.5 | I45: 15731.6 | J45: 73.7 | L45: 167.7 | M45: 2022.6 | N45: 2264 | O45: 17995.6 | P45: 計 | R45: =SUM(R38:R44) -> 907.97
A46: 14 | B46: 面積 | C46: 323.1 | D46: 13.4 | E46: 1.16 | F46: 756.29 | G46: 2962.11 | H46: 11.98 | I46: 4068.04 | J46: 107.76 | L46: 222.42 | M46: 2310.76 | N46: 2640.94 | O46: 6708.98 | P46: 竹 林 | R46: 109.49
B47: 蓄積 | C47: 151163 | D47: 5511 | E47: 488 | F47: 183446 | G47: 1045406 | H47: 3775 | I47: 1389789 | J47: 12227 | L47: 26928 | M47: 276111 | N47: 315266 | O47: 1705055 | P47: 更新 困難地 | Q47: 面積 | R47: 226.77
B48: 成長 | C48: 1364 | D48: 98.5 | E48: 8.8 | F48: 1444.6 | G48: 7288.6 | H48: 63.4 | I48: 10267.9 | J48: 142.4 | L48: 290.2 | M48: 3034.1 | N48: 3466.7 | O48: 13734.6 | Q48: 蓄積 | R48: 38410
A49: 15 以上 | B49: 面積 | C49: 469.92 | D49: 166.21 | E49: 32.47 | F49: 3102.84 | G49: 2575.05 | H49: 64 | I49: 6410.49 | J49: 200.38 | K49: 4 | L49: 517.71 | M49: 5879.79 | N49: 6601.88 | O49: 13012.37 | Q49: 成長 | R49: 38.2
B50: 蓄積 | C50: 231180 | D50: 77478 | E50: 14973 | F50: 803389 | G50: 921197 | H50: 25453 | I50: 2073670 | J50: 24681 | K50: 758 | L50: 66466 | M50: 726120 | N50: 818025 | O50: 2891695
B51: 成長 | C51: 902.7 | D51: 213.9 | E51: 35.9 | F51: 2696 | G51: 3695.2 | H51: 244.5 | I51: 7788.2 | J51: 200.5 | K51: 0.4 | L51: 432.8 | M51: 4542.1 | N51: 5175.8 | O51: 12964 | P51: 総 合 計
A52: 計 | B52: 面積 | C52: =SUM(C7,C10,C13,C16,C19,C22,C25,C28,C31,C34,C37,C40,C43,C46,C49) -> 1951.87 | D52: 1874.99 | E52: 39.13 | F52: 8767.45 | G52: 12420.87 | H52: 203.03 | I52: =SUM(C52:H52) -> 25257.34 | J52: =SUM(J7,J10,J13,J16,J19,J22,J25,J28,J31,J34,J37,J40,J43,J46,J49) -> 381.33 | K52: =SUM(K7,K10,K13,K16,K19,K22,K25,K28,K31,K34,K37,K40,K43,K46,K49) -> 7.12 | L52: =SUM(L7,L10,L13,L16,L19,L22,L25,L28,L31,L34,L37,L40,L43,L46,L49) -> 1336.41 | M52: =SUM(M7,M10,M13,M16,M19,M22,M25,M28,M31,M34,M37,M40,M43,M46,M49) -> 12498.85 | N52: =SUM(J52:M52) -> 14223.71 | O52: =SUM(N52,I52) -> 39481.05 | P52: 面 積 | R52: =SUM(O52,R45,R47,R46) -> 40725.28
B53: 蓄積 | C53: 878835 | D53: 527872 | E53: 17476 | F53: 2096369 | G53: 4115331 | H53: 59127 | I53: =SUM(C53:H53) -> 7695010 | J53: =SUM(J8,J11,J14,J17,J20,J23,J26,J29,J32,J35,J38,J41,J44,J47,J50) -> 44046 | K53: 2347 | L53: 141781 | M53: 1363424 | N53: =SUM(J53:M53) -> 1551598 | O53: =SUM(N53,I53) -> 9246608 | P53: 蓄 積 | R53: =O53+R48 -> 9285018
B54: 成長 | C54: 8884.7 | D54: 15322.6 | E54: 87.1 | F54: 15239.4 | G54: 32946.4 | H54: 1116.7 | I54: =SUM(C54:H54) -> 73596.9 | J54: 484.5 | K54: 95.7 | L54: 1962.9 | M54: 16090.6 | N54: =SUM(J54:M54) -> 18633.7 | O54: =SUM(N54,I54) -> 92230.6 | P54: 成長量 | R54: =O54+R49 -> 92268.8

Sheet 諏訪
A1: 第4表 地域振興局別・資源構成表
A3: 諏訪地域振興局 | O3: 単位 面積 : ha、蓄積 成長量 : ㎥
B4: 樹種 | C4: 針 葉 樹 | J4: 広 葉 樹 | O4: 計
C5: ス ギ | D5: ヒ ノ キ | E5: サ ワ ラ | F5: ア カ マ ツ | G5: カ ラ マ ツ | H5: そ の 他 針 | I5: 小 計 | J5: ク ヌ ギ | K5: ブ ナ | L5: ナ ラ | M5: そ の 他 広 | N5: 小 計
A6: 齢級
A7: 1 | B7: 面積 | C7: 0.08 | E7: 0.03 | F7: 9.66 | G7: 24.66 | I7: 34.43 | L7: 1.05 | M7: 1.55 | N7: 2.6 | O7: 37.03
B8: 蓄積 | C8: 0 | E8: 0 | F8: 0 | G8: 0 | I8: 0 | L8: 0 | M8: 0 | N8: 0 | O8: 0
B9: 成長 | C9: 0 | E9: 0 | F9: 0 | G9: 0 | I9: 0 | L9: 0 | M9: 0 | N9: 0 | O9: 0
A10: 2 | B10: 面積 | D10: 3.15 | F10: 6.15 | G10: 23.1 | I10: 32.4 | L10: 4.29 | M10: 0.54 | N10: 4.83 | O10: 37.23
B11: 蓄積 | D11: 0 | F11: 0 | G11: 0 | I11: 0 | L11: 31 | M11: 7 | N11: 38 | O11: 38
B12: 成長 | D12: 0 | F12: 0 | G12: 0 | I12: 0 | L12: 4 | M12: 0.9 | N12: 4.9 | O12: 4.9
A13: 3 | B13: 面積 | C13: 0.14 | I13: 0.14 | M13: 9.26 | N13: 9.26 | O13: 9.4
B14: 蓄積 | C14: 13 | I14: 13 | M14: 171 | N14: 171 | O14: 184
B15: 成長 | C15: 2.6 | I15: 2.6 | M15: 15 | N15: 15 | O15: 17.6
A16: 4 | B16: 面積 | C16: 0.04 | D16: 0.87 | G16: 15.33 | I16: 16.24 | M16: 18.94 | N16: 18.94 | O16: 35.18
B17: 蓄積 | C17: 5 | D17: 388 | E17: 81 | G17: 1013 | H17: 21 | I17: 1508 | M17: 627 | N17: 627 | O17: 2135
B18: 成長 | C18: 0.4 | D18: 35.2 | E18: 7.3 | G18: 61 | H18: 1.7 | I18: 105.6 | M18: 42.6 | N18: 42.6 | O18: 148.2
A19: 5 | B19: 面積 | C19: 0.09 | D19: 1.6 | F19: 1.09 | G19: 0.28 | H19: 1.26 | I19: 4.32 | L19: 0.81 | M19: 28.27 | N19: 29.08 | O19: 33.4
B20: 蓄積 | C20: 55 | D20: 3532 | F20: 2497 | G20: 31 | H20: 1094 | I20: 7209 | L20: 105 | M20: 2038 | N20: 2143 | O20: 9352
B21: 成長 | C21: 2.7 | D21: 205.4 | F21: 125.7 | G21: 1.4 | H21: 71.7 | I21: 406.9 | L21: 5.2 | M21: 104.8 | N21: 110 | O21: 516.9
A22: 6 | B22: 面積 | C22: 0.42 | D22: 13.91 | F22: 1.39 | G22: 1.68 | H22: 10.89 | I22: 28.29 | L22: 4.39 | M22: 83.82 | N22: 88.21 | O22: 116.5
B23: 蓄積 | C23: 85 | D23: 8854 | F23: 128 | G23: 465 | H23: 3211 | I23: 12743 | L23: 1864 | M23: 4933 | N23: 6797 | O23: 19540
B24: 成長 | C24: 3 | D24: 382 | F24: 5.9 | G24: 10.7 | H24: 161.9 | I24: 563.5 | L24: 71.3 | M24: 200.9 | N24: 272.2 | O24: 835.7
A25: 7 | B25: 面積 | C25: 0.48 | D25: 45.75 | E25: 0.21 | F25: 9.22 | G25: 2.1 | H25: 10.2 | I25: 67.96 | L25: 4.34 | M25: 65.81 | N25: 70.15 | O25: 138.11
B26: 蓄積 | C26: 131 | D26: 17597 | E26: 122 | F26: 1305 | G26: 335 | H26: 2914 | I26: 22404 | L26: 310 | M26: 4661 | N26: 4971 | O26: 27375
B27: 成長 | C27: 3.5 | D27: 568.7 | E27: 4 | F27: 31.2 | G27: 7.5 | H27: 136.9 | I27: 751.8 | L27: 10.6 | M27: 145 | N27: 155.6 | O27: 907.4
A28: 8 | B28: 面積 | C28: 0.77 | D28: 83.25 | E28: 0.24 | F28: 8.12 | G28: 18.33 | H28: 37.44 | I28: 148.15 | L28: 7.16 | M28: 127.01 | N28: 134.17 | O28: 282.32
B29: 蓄積 | C29: 195 | D29: 33854 | E29: 44 | F29: 1434 | G29: 3676 | H29: 4233 | I29: 43436 | L29: 374 | M29: 8236 | N29: 8610 | O29: 52046
B30: 成長 | C30: 4.5 | D30: 884.4 | E30: 1.2 | F30: 28.9 | G30: 81.3 | H30: 158.8 | I30: 1159.1 | L30: 10.7 | M30: 248.2 | N30: 258.9 | O30: 1418
A31: 9 | B31: 面積 | C31: 3.44 | D31: 193.1 | E31: 2.18 | F31: 31.1 | G31: 47.62 | H31: 81.85 | I31: 359.29 | L31: 3.21 | M31: 153.83 | N31: 157.04 | O31: 516.33
B32: 蓄積 | C32: 946 | D32: 46325 | E32: 452 | F32: 5863 | G32: 10045 | H32: 8647 | I32: 72278 | L32: 261 | M32: 11277 | N32: 11538 | O32: 83816
B33: 成長 | C33: 16.5 | D33: 982.4 | E33: 9.5 | F33: 90.2 | G33: 184.6 | H33: 277.1 | I33: 1560.3 | L33: 7.1 | M33: 306.5 | N33: 313.6 | O33: 1873.9
A34: 10 | B34: 面積 | C34: 8.05 | D34: 145.59 | E34: 2.44 | F34: 132.42 | G34: 178.3 | H34: 58.07 | I34: 524.87 | L34: 11.46 | M34: 302.09 | N34: 313.55 | O34: 838.42
B35: 蓄積 | C35: 2397 | D35: 31985 | E35: 552 | F35: 26262 | G35: 41561 | H35: 6494 | I35: 109251 | L35: 868 | M35: 23147 | N35: 24015 | O35: 133266
B36: 成長 | C36: 33.5 | D36: 592.6 | E36: 9.9 | F36: 349.3 | G36: 627.8 | H36: 187.4 | I36: 1800.5 | L36: 18.8 | M36: 589.5 | N36: 608.3 | O36: 2408.8
A37: 11 | B37: 面積 | C37: 7.12 | D37: 88.77 | E37: 1.74 | F37: 328.25 | G37: 846.87 | H37: 110.07 | I37: 1382.82 | L37: 11.75 | M37: 239.69 | N37: 251.44 | O37: 1634.26
B38: 蓄積 | C38: 2336 | D38: 21940 | E38: 430 | F38: 68639 | G38: 207554 | H38: 15403 | I38: 316302 | L38: 1059 | M38: 21786 | N38: 22845 | O38: 339147 | P38: 伐 跡 | R38: 88.1
B39: 成長 | C39: 32 | D39: 354.8 | E39: 6.6 | F39: 765.7 | G39: 2910.8 | H39: 319.2 | I39: 4389.1 | L39: 20.2 | M39: 426.4 | N39: 446.6 | O39: 4835.7 | P39: 未立木地 | R39: 1725.96
A40: 12 | B40: 面積 | C40: 15.89 | D40: 21.65 | E40: 2.91 | F40: 609.29 | G40: 2457.84 | H40: 103.29 | I40: 3210.87 | L40: 17.4 | M40: 511.3 | N40: 528.7 | O40: 3739.57 | P40: 岩石地 | R40: 87.06
B41: 蓄積 | C41: 5402 | D41: 5604 | E41: 749 | F41: 135768 | G41: 640985 | H41: 14977 | I41: 803485 | L41: 1505 | M41: 47974 | N41: 49479 | O41: 852964 | P41: 崩壊地 | R41: 258.32
B42: 成長 | C42: 68.6 | D42: 79.2 | E42: 10.6 | F42: 1236.7 | G42: 8209 | H42: 289.2 | I42: 9893.3 | L42: 27.6 | M42: 894.2 | N42: 921.8 | O42: 10815.1 | P42: はげ山 | R42: 14.99
A43: 13 | B43: 面積 | C43: 29.42 | D43: 20.71 | E43: 6.97 | F43: 669.65 | G43: 4191.46 | H43: 292.58 | I43: 5210.79 | L43: 112.35 | M43: 876.51 | N43: 988.86 | O43: 6199.65 | P43: 施設敷 | R43: 101.85
B44: 蓄積 | C44: 10180 | D44: 5679 | E44: 1775 | F44: 152564 | G44: 1107288 | H44: 41930 | I44: 1319416 | L44: 11184 | M44: 87705 | N44: 98889 | O44: 1418305 | P44: 林地開発
B45: 成長 | C45: 127.2 | D45: 75.3 | E45: 24.1 | F45: 1366 | G45: 13613.7 | H45: 796.6 | I45: 16002.9 | L45: 153.1 | M45: 1414.6 | N45: 1567.7 | O45: 17570.6 | P45: 計 | R45: =SUM(R38:R44) -> 2276.28
A46: 14 | B46: 面積 | C46: 41.39 | D46: 54.93 | E46: 31.67 | F46: 968.79 | G46: 4883.95 | H46: 374.16 | I46: 6354.89 | L46: 242.13 | M46: 1642.06 | N46: 1884.19 | O46: 8239.08 | P46: 竹 林 | R46: 4.78
B47: 蓄積 | C47: 14827 | D47: 15135 | E47: 8669 | F47: 229198 | G47: 1374621 | H47: 59029 | I47: 1701479 | L47: 25343 | M47: 168545 | N47: 193888 | O47: 1895367 | P47: 更新 困難地 | Q47: 面積 | R47: 1.19
B48: 成長 | C48: 146.5 | D48: 178.3 | E48: 104 | F48: 1841.6 | G48: 14571 | H48: 973.1 | I48: 17814.5 | L48: 306.5 | M48: 1988.3 | N48: 2294.8 | O48: 20109.3 | Q48: 蓄積 | R48: 229
A49: 15 以上 | B49: 面積 | C49: 114.87 | D49: 307.24 | E49: 209.13 | F49: 3431.62 | G49: 5712.65 | H49: 1308.43 | I49: 11083.94 | J49: 0.31 | L49: 921.17 | M49: 5664.48 | N49: 6585.96 | O49: 17669.9 | Q49: 成長 | R49: 2.5
B50: 蓄積 | C50: 45401 | D50: 91962 | E50: 60896 | F50: 880484 | G50: 1623514 | H50: 266839 | I50: 2969096 | J50: 28 | L50: 103288 | M50: 674156 | N50: 777472 | O50: 3746568
B51: 成長 | C51: 120.9 | D51: 277.9 | E51: 126 | F51: 4325.4 | G51: 8549.6 | H51: 1890.1 | I51: 15289.9 | J51: 0 | L51: 674.2 | M51: 2643.8 | N51: 3318 | O51: 18607.9 | P51: 総 合 計
A52: 計 | B52: 面積 | C52: =SUM(C7,C10,C13,C16,C19,C22,C25,C28,C31,C34,C37,C40,C43,C46,C49) -> 222.2 | D52: 980.52 | E52: 257.52 | F52: 6206.75 | G52: 18404.17 | H52: 2388.24 | I52: =SUM(C52:H52) -> 28459.4 | J52: =SUM(J7,J10,J13,J16,J19,J22,J25,J28,J31,J34,J37,J40,J43,J46,J49) -> 0.31 | K52: =SUM(K7,K10,K13,K16,K19,K22,K25,K28,K31,K34,K37,K40,K43,K46,K49) -> 0 | L52: =SUM(L7,L10,L13,L16,L19,L22,L25,L28,L31,L34,L37,L40,L43,L46,L49) -> 1341.51 | M52: =SUM(M7,M10,M13,M16,M19,M22,M25,M28,M31,M34,M37,M40,M43,M46,M49) -> 9725.16 | N52: =SUM(J52:M52) -> 11066.98 | O52: =SUM(N52,I52) -> 39526.38 | P52: 面 積 | R52: =SUM(O52,R45,R47,R46) -> 41808.63
B53: 蓄積 | C53: 81973 | D53: 282855 | E53: 73770 | F53: 1504142 | G53: 5011088 | H53: 424792 | I53: =SUM(C53:H53) -> 7378620 | J53: =SUM(J8,J11,J14,J17,J20,J23,J26,J29,J32,J35,J38,J41,J44,J47,J50) -> 28 | K53: 0 | L53: 146192 | M53: 1055263 | N53: =SUM(J53:M53) -> 1201483 | O53: 8580103 | P53: 蓄 積 | R53: =O53+R48 -> 8580332
B54: 成長 | C54: 561.9 | D54: 4616.2 | E54: 303.2 | F54: 10166.6 | G54: 48828.4 | H54: 5263.7 | I54: =SUM(C54:H54) -> 69740 | J54: 0 | K54: 0 | L54: 1309.3 | M54: 9020.7 | N54: =SUM(J54:M54) -> 10330 | O54: 80070 | P54: 成長量 | R54: =O54+R49 -> 80072.5

Sheet 上伊那
A1: 第4表 地域振興局別・資源構成表
A3: 上伊那地域振興局 | O3: 単位 面積 : ha、蓄積 成長量 : ㎥
B4: 樹種 | C4: 針 葉 樹 | J4: 広 葉 樹 | O4: 計
C5: ス ギ | D5: ヒ ノ キ | E5: サ ワ ラ | F5: ア カ マ ツ | G5: カ ラ マ ツ | H5: そ の 他 針 | I5: 小 計 | J5: ク ヌ ギ | K5: ブ ナ | L5: ナ ラ | M5: そ の 他 広 | N5: 小 計
A6: 齢級
A7: 1 | B7: 面積 | D7: 21.38 | E7: 0.37 | G7: 24.92 | I7: 46.67 | L7: 15.28 | M7: 6.21 | N7: 21.49 | O7: 68.16
B8: 蓄積 | D8: 0 | E8: 0 | G8: 0 | I8: 0 | L8: 0 | M8: 0 | N8: 0 | O8: 0
B9: 成長 | D9: 0 | E9: 0 | G9: 0 | I9: 0 | L9: 0 | M9: 0 | N9: 0 | O9: 0
A10: 2 | B10: 面積 | C10: 1.65 | D10: 15.79 | G10: 15.63 | I10: 33.07 | J10: 0.02 | L10: 6.1 | M10: 26.59 | N10: 32.71 | O10: 65.78
B11: 蓄積 | C11: 0 | D11: 0 | G11: 0 | I11: 0 | J11: 8 | L11: 69 | M11: 327 | N11: 404 | O11: 404
B12: 成長 | C12: 0 | D12: 0 | G12: 0 | I12: 0 | J12: 1.9 | L12: 8.6 | M12: 45.9 | N12: 56.4 | O12: 56.4
A13: 3 | B13: 面積 | D13: 16.75 | F13: 0.27 | G13: 8.9 | H13: 0.11 | I13: 26.03 | L13: 0.09 | M13: 8.86 | N13: 8.95 | O13: 34.98
B14: 蓄積 | D14: 1222 | F14: 8 | G14: 665 | H14: 1 | I14: 1896 | L14: 2 | M14: 198 | N14: 200 | O14: 2096
B15: 成長 | D15: 234.9 | F15: 1.1 | G15: 60.8 | H15: 0.2 | I15: 297 | L15: 0.2 | M15: 17.9 | N15: 18.1 | O15: 315.1
A16: 4 | B16: 面積 | D16: 88.34 | E16: 0.11 | F16: 1.63 | G16: 16.12 | H16: 0.5 | I16: 106.7 | K16: 0.61 | L16: 18.19 | M16: 30.94 | N16: 49.74 | O16: 156.44
B17: 蓄積 | D17: 7402 | E17: 7 | F17: 115 | G17: 1445 | H17: 17 | I17: 8986 | K17: 10 | L17: 551 | M17: 1073 | N17: 1634 | O17: 10620
B18: 成長 | D18: 676.7 | E18: 0.6 | F18: 9.6 | G18: 85.1 | H18: 1.4 | I18: 773.4 | K18: 0.9 | L18: 37.1 | M18: 73.1 | N18: 111.1 | O18: 884.5
A19: 5 | B19: 面積 | C19: 0.16 | D19: 135.14 | F19: 4.68 | G19: 43.62 | H19: 0.43 | I19: 184.03 | J19: 0.42 | L19: 3.15 | M19: 40.99 | N19: 44.56 | O19: 228.59
B20: 蓄積 | C20: 27 | D20: 14915 | F20: 521 | G20: 5561 | H20: 806 | I20: 21830 | J20: 27 | K20: 1 | L20: 126 | M20: 1661 | N20: 1815 | O20: 23645
B21: 成長 | C21: 1.3 | D21: 867.7 | F21: 26.6 | G21: 259.9 | H21: 54.7 | I21: 1210.2 | J21: 0.9 | K21: 0.1 | L21: 6.2 | M21: 88 | N21: 95.2 | O21: 1305.4
A22: 6 | B22: 面積 | C22: 0.23 | D22: 194.55 | F22: 4.18 | G22: 120.68 | H22: 1.64 | I22: 321.28 | L22: 0.71 | M22: 120.41 | N22: 121.12 | O22: 442.4
B23: 蓄積 | C23: 44 | D23: 35419 | F23: 539 | G23: 17379 | H23: 105 | I23: 53486 | L23: 33 | M23: 5790 | N23: 5823 | O23: 59309
B24: 成長 | C24: 1.5 | D24: 1525.8 | F24: 20 | G24: 402.8 | H24: 5.4 | I24: 1955.5 | L24: 1.3 | M24: 235.9 | N24: 237.2 | O24: 2192.7
A25: 7 | B25: 面積 | C25: 2.31 | D25: 285.33 | F25: 35.59 | G25: 93.64 | H25: 10.13 | I25: 427 | J25: 0.83 | K25: 1.56 | L25: 14.84 | M25: 164.06 | N25: 181.29 | O25: 608.29
B26: 蓄積 | C26: 500 | D26: 64373 | F26: 4387 | G26: 18034 | H26: 780 | I26: 88074 | J26: 68 | K26: 35 | L26: 903 | M26: 9799 | N26: 10805 | O26: 98879
B27: 成長 | C27: 12.9 | D27: 2085.3 | F27: 116.5 | G27: 398 | H27: 36.1 | I27: 2648.8 | J27: 0.2 | K27: 2 | L27: 29.2 | M27: 303.6 | N27: 335 | O27: 2983.8
A28: 8 | B28: 面積 | C28: 9.37 | D28: 358.07 | F28: 55.79 | G28: 240.02 | H28: 27.42 | I28: 690.67 | J28: 0.58 | L28: 25.78 | M28: 325.72 | N28: 352.08 | O28: 1042.75
B29: 蓄積 | C29: 2680 | D29: 74255 | F29: 11249 | G29: 44851 | H29: 3578 | I29: 136613 | J29: 50 | L29: 1827 | M29: 21764 | N29: 23641 | O29: 160254
B30: 成長 | C30: 61.8 | D30: 1940 | F30: 231.4 | G30: 962.2 | H30: 131.8 | I30: 3327.2 | J30: 0.1 | L30: 52.9 | M30: 657.6 | N30: 710.6 | O30: 4037.8
A31: 9 | B31: 面積 | C31: 20.53 | D31: 538.21 | F31: 155.22 | G31: 387.56 | H31: 54.19 | I31: 1155.71 | J31: 1.68 | L31: 24.6 | M31: 236.64 | N31: 262.92 | O31: 1418.63
B32: 蓄積 | C32: 5778 | D32: 113523 | F32: 29000 | G32: 75875 | H32: 6046 | I32: 230222 | J32: 150 | L32: 2001 | M32: 18930 | N32: 21081 | O32: 251303
B33: 成長 | C33: 100.4 | D33: 2400.9 | F33: 445.2 | G33: 1412.6 | H33: 184.3 | I33: 4543.4 | J33: 0.1 | L33: 53.9 | M33: 529.9 | N33: 583.9 | O33: 5127.3
A34: 10 | B34: 面積 | C34: 32.1 | D34: 887.65 | E34: 3.18 | F34: 501.67 | G34: 1031.62 | H34: 126.51 | I34: 2582.73 | J34: 0.18 | L34: 16 | M34: 568.07 | N34: 584.25 | O34: 3166.98
B35: 蓄積 | C35: 9708 | D35: 201433 | E35: 735 | F35: 103365 | G35: 233867 | H35: 15799 | I35: 564907 | J35: 16 | L35: 1489 | M35: 48843 | N35: 50348 | O35: 615255
B36: 成長 | C36: 136.1 | D36: 3652.6 | E36: 13.2 | F36: 1357.8 | G36: 3530.8 | H36: 469.1 | I36: 9159.6 | J36: 0 | L36: 35.9 | M36: 1240 | N36: 1275.9 | O36: 10435.5
A37: 11 | B37: 面積 | C37: 59.51 | D37: 775.86 | E37: 10.96 | F37: 1588.32 | G37: 1752.94 | H37: 32.46 | I37: 4220.05 | J37: 1.08 | L37: 10.73 | M37: 567.03 | N37: 578.84 | O37: 4798.89
B38: 蓄積 | C38: 19277 | D38: 193152 | E38: 1979 | F38: 349181 | G38: 431947 | H38: 4400 | I38: 999936 | J38: 94 | L38: 1105 | M38: 54616 | N38: 55815 | O38: 1055751 | P38: 伐 跡 | R38: 42.73
B39: 成長 | C39: 267.7 | D39: 3100.7 | E39: 31.7 | F39: 3854.9 | G39: 6043.2 | H39: 96.2 | I39: 13394.4 | J39: 0 | L39: 22.3 | M39: 1071.8 | N39: 1094.1 | O39: 14488.5 | P39: 未立木地 | R39: 253.14
A40: 12 | B40: 面積 | C40: 168.16 | D40: 290.65 | E40: 1.58 | F40: 3265.11 | G40: 4291.32 | H40: 14.89 | I40: 8031.71 | J40: 1.28 | L40: 31.64 | M40: 891.47 | N40: 924.39 | O40: 8956.1 | P40: 岩石地 | R40: 122.18
B41: 蓄積 | C41: 57622 | D41: 77226 | E41: 403 | F41: 748230 | G41: 1106004 | H41: 2204 | I41: 1991689 | J41: 115 | L41: 3356 | M41: 92517 | N41: 95988 | O41: 2087677 | P41: 崩壊地 | R41: 513.43
B42: 成長 | C42: 744.7 | D42: 1086.1 | E42: 5.5 | F42: 6798 | G42: 14106.6 | H42: 43.2 | I42: 22784.1 | J42: 0 | L42: 64.7 | M42: 1775.7 | N42: 1840.4 | O42: 24624.5 | P42: はげ山 | R42: 7.39
A43: 13 | B43: 面積 | C43: 275.32 | D43: 270.06 | E43: 5.14 | F43: 3323.64 | G43: 5998.19 | H43: 42.19 | I43: 9914.54 | J43: 4.82 | L43: 48.86 | M43: 1335.95 | N43: 1389.63 | O43: 11304.17 | P43: 施設敷 | R43: 148.03
B44: 蓄積 | C44: 97313 | D44: 75926 | E44: 1350 | F44: 777196 | G44: 1561829 | H44: 5935 | I44: 2519549 | J44: 429 | L44: 5644 | M44: 149714 | N44: 155787 | O44: 2675336 | P44: 林地開発 | R44: 14.17
B45: 成長 | C45: 1186.9 | D45: 1048.4 | E45: 17.3 | F45: 6908.2 | G45: 19169.8 | H45: 113.7 | I45: 28444.3 | J45: 0 | L45: 86.7 | M45: 2330.3 | N45: 2417 | O45: 30861.3 | P45: 計 | R45: =SUM(R38:R44) -> 1101.07
A46: 14 | B46: 面積 | C46: 433.53 | D46: 306.48 | E46: 7.44 | F46: 3265.36 | G46: 6241.58 | H46: 29.87 | I46: 10284.26 | J46: 11.67 | L46: 158.67 | M46: 2724.47 | N46: 2894.81 | O46: 13179.07 | P46: 竹 林 | R46: 259.2
B47: 蓄積 | C47: 158385 | D47: 83230 | E47: 2146 | F47: 793246 | G47: 1809787 | H47: 4852 | I47: 2851646 | J47: 1056 | L47: 19435 | M47: 322527 | N47: 343018 | O47: 3194664 | P47: 更新 困難地 | Q47: 面積 | R47: 7.71
B48: 成長 | C48: 1582.5 | D48: 1001.9 | E48: 25.7 | F48: 6365.6 | G48: 19217.4 | H48: 78.3 | I48: 28271.4 | J48: 0 | L48: 208.6 | M48: 3553.3 | N48: 3761.9 | O48: 32033.3 | Q48: 蓄積 | R48: 1007
A49: 15 以上 | B49: 面積 | C49: 477.38 | D49: 1272.59 | E49: 62.41 | F49: 6617.11 | G49: 5697.11 | H49: 496.41 | I49: 14623.01 | J49: 43.9 | K49: 7.88 | L49: 345.8 | M49: 9602.16 | N49: 9999.74 | O49: 24622.75 | Q49: 成長 | R49: 0.3
B50: 蓄積 | C50: 187097 | D50: 392581 | E50: 19118 | F50: 1760979 | G50: 1707537 | H50: 104174 | I50: 4171486 | J50: 3898 | K50: 1095 | L50: 45431 | M50: 1197464 | N50: 1247888 | O50: 5419374
B51: 成長 | C51: 789.7 | D51: 1098.4 | E51: 31.2 | F51: 9154 | G51: 11779.3 | H51: 763.1 | I51: 23615.7 | J51: 0 | K51: 0 | L51: 204.7 | M51: 5657.4 | N51: 5862.1 | O51: 29477.8 | P51: 総 合 計
A52: 計 | B52: 面積 | C52: =SUM(C7,C10,C13,C16,C19,C22,C25,C28,C31,C34,C37,C40,C43,C46,C49) -> 1480.25 | D52: 5456.85 | E52: 91.19 | F52: 18818.57 | G52: 25963.85 | H52: 836.75 | I52: =SUM(C52:H52) -> 52647.46 | J52: =SUM(J7,J10,J13,J16,J19,J22,J25,J28,J31,J34,J37,J40,J43,J46,J49) -> 66.46 | K52: =SUM(K7,K10,K13,K16,K19,K22,K25,K28,K31,K34,K37,K40,K43,K46,K49) -> 10.05 | L52: =SUM(L7,L10,L13,L16,L19,L22,L25,L28,L31,L34,L37,L40,L43,L46,L49) -> 720.44 | M52: =SUM(M7,M10,M13,M16,M19,M22,M25,M28,M31,M34,M37,M40,M43,M46,M49) -> 16649.57 | N52: =SUM(J52:M52) -> 17446.52 | O52: =SUM(N52,I52) -> 70093.98 | P52: 面 積 | R52: =SUM(O52,R45,R47,R46) -> 71461.96
B53: 蓄積 | C53: 538431 | D53: 1334657 | E53: 25738 | F53: 4578016 | G53: 7014781 | H53: 148697 | I53: =SUM(C53:H53) -> 13640320 | J53: =SUM(J8,J11,J14,J17,J20,J23,J26,J29,J32,J35,J38,J41,J44,J47,J50) -> 5911 | K53: 1141 | L53: 81972 | M53: 1925223 | N53: =SUM(J53:M53) -> 2014247 | O53: 15654567 | P53: 蓄 積 | R53: =O53+R48 -> 15655574
B54: 成長 | C54: 4885.5 | D54: 20719.4 | E54: 125.2 | F54: 35288.9 | G54: 77428.5 | H54: 1977.5 | I54: =SUM(C54:H54) -> 140425 | J54: 3.2 | K54: 3 | L54: 812.3 | M54: 17580.4 | N54: =SUM(J54:M54) -> 18398.9 | O54: 158823.9 | P54: 成長量 | R54: =O54+R49 -> 158824.2

Sheet 南信州
A1: 第4表 地域振興局別・資源構成表
A3: 南信州地域振興局 | O3: 単位 面積 : ha、蓄積 成長量 : ㎥
B4: 樹種 | C4: 針 葉 樹 | J4: 広 葉 樹 | O4: 計
C5: ス ギ | D5: ヒ ノ キ | E5: サ ワ ラ | F5: ア カ マ ツ | G5: カ ラ マ ツ | H5: そ の 他 針 | I5: 小 計 | J5: ク ヌ ギ | K5: ブ ナ | L5: ナ ラ | M5: そ の 他 広 | N5: 小 計
A6: 齢級
A7: 1 | B7: 面積 | C7: 5.73 | D7: 11.53 | F7: 0.51 | G7: 19.15 | I7: 36.92 | L7: 4.83 | M7: 5.62 | N7: 10.45 | O7: 47.37
B8: 蓄積 | C8: 0 | D8: 0 | F8: 0 | G8: 0 | I8: 0 | L8: 0 | M8: 0 | N8: 0 | O8: 0
B9: 成長 | C9: 0 | D9: 0 | F9: 0 | G9: 0 | I9: 0 | L9: 0 | M9: 0 | N9: 0 | O9: 0
A10: 2 | B10: 面積 | C10: 0.49 | D10: 32.03 | G10: 11.33 | H10: 0.22 | I10: 44.07 | L10: 8.38 | M10: 25.3 | N10: 33.68 | O10: 77.75
B11: 蓄積 | C11: 0 | D11: 0 | G11: 0 | H11: 0 | I11: 0 | L11: 108 | M11: 327 | N11: 435 | O11: 435
B12: 成長 | C12: 0 | D12: 0 | G12: 0 | H12: 0 | I12: 0 | L12: 15.5 | M12: 46.3 | N12: 61.8 | O12: 61.8
A13: 3 | B13: 面積 | C13: 4.82 | D13: 45.37 | I13: 50.19 | L13: 8.96 | M13: 48.53 | N13: 57.49 | O13: 107.68
B14: 蓄積 | C14: 458 | D14: 2496 | I14: 2954 | L14: 207 | M14: 1033 | N14: 1240 | O14: 4194
B15: 成長 | C15: 92.5 | D15: 538.3 | I15: 630.8 | L15: 17.6 | M15: 88.5 | N15: 106.1 | O15: 736.9
A16: 4 | B16: 面積 | C16: 6 | D16: 320.38 | E16: 9.18 | F16: 5.06 | G16: 2.43 | H16: 0.87 | I16: 343.92 | L16: 14.84 | M16: 124.26 | N16: 139.1 | O16: 483.02
B17: 蓄積 | C17: 737 | D17: 24954 | E17: 684 | F17: 408 | G17: 663 | H17: 27 | I17: 27473 | L17: 488 | M17: 3564 | N17: 4052 | O17: 31525
B18: 成長 | C18: 58.9 | D18: 2295.3 | E18: 64.7 | F18: 33.6 | G18: 49.8 | H18: 2.1 | I18: 2504.4 | L18: 32 | M18: 233.6 | N18: 265.6 | O18: 2770
A19: 5 | B19: 面積 | C19: 9.11 | D19: 347.18 | E19: 0.12 | F19: 3.79 | G19: 0.21 | H19: 0.35 | I19: 360.76 | K19: 0.56 | L19: 7.64 | M19: 153.08 | N19: 161.28 | O19: 522.04
B20: 蓄積 | C20: 2251 | D20: 52606 | E20: 13 | F20: 374 | G20: 25 | H20: 17 | I20: 55286 | K20: 14 | L20: 306 | M20: 6910 | N20: 7230 | O20: 62516
B21: 成長 | C21: 111.2 | D21: 3215.2 | E21: 0.8 | F21: 19.5 | G21: 1.4 | H21: 1.2 | I21: 3349.3 | K21: 1 | L21: 14.5 | M21: 330.4 | N21: 345.9 | O21: 3695.2
A22: 6 | B22: 面積 | C22: 18.46 | D22: 857.52 | E22: 0.51 | F22: 12.33 | G22: 5.39 | H22: 4.1 | I22: 898.31 | J22: 0.07 | L22: 8.76 | M22: 343.22 | N22: 352.05 | O22: 1250.36
B23: 蓄積 | C23: 9314 | D23: 141020 | E23: 58 | F23: 1134 | G23: 798 | H23: 200 | I23: 152524 | J23: 5 | L23: 1018 | M23: 16941 | N23: 17964 | O23: 170488
B24: 成長 | C24: 342.7 | D24: 5961 | E24: 2.7 | F24: 42 | G24: 28.7 | H24: 10.9 | I24: 6388 | J24: 0.1 | L24: 38.5 | M24: 643.3 | N24: 681.9 | O24: 7069.9
A25: 7 | B25: 面積 | C25: 20.78 | D25: 1543.81 | E25: 0.07 | F25: 42.24 | G25: 16.36 | H25: 5.11 | I25: 1628.37 | J25: 2.23 | L25: 49.31 | M25: 816.88 | N25: 868.42 | O25: 2496.79
B26: 蓄積 | C26: 4945 | D26: 269721 | E26: 12 | F26: 6668 | G26: 2497 | H26: 991 | I26: 284834 | J26: 176 | L26: 3535 | M26: 48815 | N26: 52526 | O26: 337360
B27: 成長 | C27: 129.3 | D27: 9226.5 | E27: 0.4 | F27: 159.7 | G27: 70.8 | H27: 43.4 | I27: 9630.1 | J27: 0.3 | L27: 113.9 | M27: 1576 | N27: 1690.2 | O27: 11320.3
A28: 8 | B28: 面積 | C28: 31.86 | D28: 2233.75 | E28: 1.8 | F28: 27.12 | G28: 136.67 | H28: 46.13 | I28: 2477.33 | J28: 0.95 | L28: 64.74 | M28: 839.46 | N28: 905.15 | O28: 3382.48
B29: 蓄積 | C29: 8815 | D29: 415899 | E29: 284 | F29: 4920 | G29: 30048 | H29: 8054 | I29: 468020 | J29: 76 | L29: 4592 | M29: 57437 | N29: 62105 | O29: 530125
B30: 成長 | C30: 203.6 | D30: 10960.1 | E30: 8.5 | F30: 99.1 | G30: 730.5 | H30: 297.9 | I30: 12299.7 | J30: 0.1 | L30: 132.1 | M30: 1650.9 | N30: 1783.1 | O30: 14082.8
A31: 9 | B31: 面積 | C31: 145.51 | D31: 3146.23 | E31: 0.33 | F31: 54.7 | G31: 275.45 | H31: 60 | I31: 3682.22 | J31: 0.29 | L31: 66.56 | M31: 842.84 | N31: 909.69 | O31: 4591.91
B32: 蓄積 | C32: 45642 | D32: 654117 | E32: 67 | F32: 10472 | G32: 56186 | H32: 7154 | I32: 773638 | J32: 24 | L32: 5510 | M32: 65362 | N32: 70896 | O32: 844534
B33: 成長 | C33: 773.9 | D33: 14386.7 | E33: 1.4 | F33: 159.7 | G33: 1118.4 | H33: 233.5 | I33: 16673.6 | J33: 0 | L33: 148.9 | M33: 1746.2 | N33: 1895.1 | O33: 18568.7
A34: 10 | B34: 面積 | C34: 346.17 | D34: 4245.37 | E34: 1.83 | F34: 340.57 | G34: 879.27 | H34: 153.63 | I34: 5966.84 | J34: 0.02 | K34: 3.86 | L34: 53.91 | M34: 1167.28 | N34: 1225.07 | O34: 7191.91
B35: 蓄積 | C35: 114896 | D35: 951763 | E35: 416 | F35: 70218 | G35: 202496 | H35: 17705 | I35: 1357494 | J35: 2 | K35: 304 | L35: 4852 | M35: 97908 | N35: 103066 | O35: 1460560
B36: 成長 | C36: 1676.6 | D36: 17204.8 | E36: 7.6 | F36: 858.9 | G36: 3027.2 | H36: 484.4 | I36: 23259.5 | J36: 0 | K36: 9.6 | L36: 115.8 | M36: 2289.5 | N36: 2414.9 | O36: 25674.4
A37: 11 | B37: 面積 | C37: 852.31 | D37: 3938.89 | E37: 6.8 | F37: 1783.4 | G37: 1368.91 | H37: 173.86 | I37: 8124.17 | J37: 0.58 | K37: 33.07 | L37: 66.01 | M37: 2111.7 | N37: 2211.36 | O37: 10335.53
B38: 蓄積 | C38: 294907 | D38: 962053 | E38: 1657 | F38: 382309 | G38: 339853 | H38: 23497 | I38: 2004276 | J38: 47 | K38: 3168 | L38: 6743 | M38: 196682 | N38: 206640 | O38: 2210916 | P38: 伐 跡 | R38: 41.09
B39: 成長 | C39: 3911.9 | D39: 15505.6 | E39: 27.1 | F39: 4291.1 | G39: 4744.6 | H39: 555.9 | I39: 29036.2 | J39: 0 | K39: 82.3 | L39: 133.7 | M39: 3815.8 | N39: 4031.8 | O39: 33068 | P39: 未立木地 | R39: 841.95
A40: 12 | B40: 面積 | C40: 1904.06 | D40: 2235.99 | E40: 1.45 | F40: 4269.33 | G40: 3127.75 | H40: 74.63 | I40: 11613.21 | J40: 3.38 | K40: 2.2 | L40: 137.32 | M40: 3491.93 | N40: 3634.83 | O40: 15248.04 | P40: 岩石地 | R40: 335.44
B41: 蓄積 | C41: 699061 | D41: 580532 | E41: 392 | F41: 959885 | G41: 829724 | H41: 9437 | I41: 3079031 | J41: 274 | K41: 240 | L41: 14575 | M41: 339668 | N41: 354757 | O41: 3433788 | P41: 崩壊地 | R41: 2038.82
B42: 成長 | C42: 8691.7 | D42: 7647.7 | E42: 5 | F42: 10638.9 | G42: 10642.9 | H42: 179.3 | I42: 37805.5 | J42: 0 | K42: 5.8 | L42: 275.7 | M42: 6392.4 | N42: 6673.9 | O42: 44479.4 | P42: はげ山 | R42: 3.85
A43: 13 | B43: 面積 | C43: 2636.58 | D43: 1762.88 | E43: 4.68 | F43: 3244.24 | G43: 3606.02 | H43: 153.9 | I43: 11408.3 | J43: 3.96 | K43: 11.31 | L43: 293.83 | M43: 5056.66 | N43: 5365.76 | O43: 16774.06 | P43: 施設敷 | R43: 259.93
B44: 蓄積 | C44: 997230 | D44: 474925 | E44: 1272 | F44: 755364 | G44: 958632 | H44: 21231 | I44: 3208654 | J44: 320 | K44: 991 | L44: 33761 | M44: 546027 | N44: 581099 | O44: 3789753 | P44: 林地開発 | R44: 11.6
B45: 成長 | C45: 11684.6 | D45: 6139.2 | E45: 16.7 | F45: 7956.1 | G45: 11914.6 | H45: 389.6 | I45: 38100.8 | J45: 0.1 | K45: 23.7 | L45: 510.3 | M45: 8460.8 | N45: 8994.9 | O45: 47095.7 | P45: 計 | R45: =SUM(R38:R44) -> 3532.68
A46: 14 | B46: 面積 | C46: 2217.86 | D46: 1313.47 | E46: 1.77 | F46: 1874.64 | G46: 4252.51 | H46: 101.75 | I46: 9762 | J46: 5.72 | L46: 585.74 | M46: 6457.7 | N46: 7049.16 | O46: 16811.16 | P46: 竹 林 | R46: 618.26
B47: 蓄積 | C47: 892072 | D47: 368387 | E47: 439 | F47: 454069 | G47: 1180605 | H47: 15380 | I47: 2910952 | J47: 428 | L47: 70096 | M47: 750739 | N47: 821263 | O47: 3732215 | P47: 更新 困難地 | Q47: 面積 | R47: 10.61
B48: 成長 | C48: 8163.5 | D48: 4390.9 | E48: 5.1 | F48: 3543.8 | G48: 12354 | H48: 260.4 | I48: 28717.7 | J48: 0 | L48: 857.5 | M48: 9345.1 | N48: 10202.6 | O48: 38920.3 | Q48: 蓄積 | R48: 1284
A49: 15 以上 | B49: 面積 | C49: 3128.11 | D49: 4186.16 | E49: 52.67 | F49: 5132.41 | G49: 3406.22 | H49: 3854.08 | I49: 19759.65 | J49: 13.06 | K49: 191.29 | L49: 2175.79 | M49: 30891.64 | N49: 33271.78 | O49: 53031.43 | Q49: 成長 | R49: 15.4
B50: 蓄積 | C50: 1345043 | D50: 1275054 | E50: 16021 | F50: 1348698 | G50: 1012708 | H50: 806353 | I50: 5803877 | J50: 966 | K50: 32752 | L50: 276031 | M50: 3740917 | N50: 4050666 | O50: 9854543
B51: 成長 | C51: 4122.9 | D51: 4453.9 | E51: 19.8 | F51: 6467.6 | G51: 7351.6 | H51: 3482.2 | I51: 25898 | J51: 0.2 | K51: 119.1 | L51: 1878.9 | M51: 20132.5 | N51: 22130.7 | O51: 48028.7 | P51: 総 合 計
A52: 計 | B52: 面積 | C52: =SUM(C7,C10,C13,C16,C19,C22,C25,C28,C31,C34,C37,C40,C43,C46,C49) -> 11327.85 | D52: 26220.56 | E52: 81.21 | F52: 16790.34 | G52: 17107.67 | H52: 4628.63 | I52: =SUM(C52:H52) -> 76156.26 | J52: =SUM(J7,J10,J13,J16,J19,J22,J25,J28,J31,J34,J37,J40,J43,J46,J49) -> 30.26 | K52: =SUM(K7,K10,K13,K16,K19,K22,K25,K28,K31,K34,K37,K40,K43,K46,K49) -> 242.29 | L52: =SUM(L7,L10,L13,L16,L19,L22,L25,L28,L31,L34,L37,L40,L43,L46,L49) -> 3546.62 | M52: =SUM(M7,M10,M13,M16,M19,M22,M25,M28,M31,M34,M37,M40,M43,M46,M49) -> 52376.1 | N52: =SUM(J52:M52) -> 56195.27 | O52: =SUM(N52,I52) -> 132351.53 | P52: 面 積 | R52: =SUM(O52,R45,R47,R46) -> 136513.08
B53: 蓄積 | C53: 4415371 | D53: 6173527 | E53: 21315 | F53: 3994519 | G53: 4614235 | H53: 910046 | I53: =SUM(C53:H53) -> 20129013 | J53: =SUM(J8,J11,J14,J17,J20,J23,J26,J29,J32,J35,J38,J41,J44,J47,J50) -> 2318 | K53: 37469 | L53: 421822 | M53: 5872330 | N53: =SUM(J53:M53) -> 6333939 | O53: 26462952 | P53: 蓄 積 | R53: =O53+R48 -> 26464236
B54: 成長 | C54: 39963.3 | D54: 101925.2 | E54: 159.8 | F54: 34270 | G54: 52034.5 | H54: 5940.8 | I54: =SUM(C54:H54) -> 234293.6 | J54: 0.8 | K54: 241.5 | L54: 4284.9 | M54: 56751.3 | N54: =SUM(J54:M54) -> 61278.5 | O54: 295572.1 | P54: 成長量 | R54: =O54+R49 -> 295587.5

Sheet 木曽
A1: 第4表 地域振興局別・資源構成表
A3: 木曽地域振興局 | O3: 単位 面積 : ha、蓄積 成長量 : ㎥
B4: 樹種 | C4: 針 葉 樹 | J4: 広 葉 樹 | O4: 計
C5: ス ギ | D5: ヒ ノ キ | E5: サ ワ ラ | F5: ア カ マ ツ | G5: カ ラ マ ツ | H5: そ の 他 針 | I5: 小 計 | J5: ク ヌ ギ | K5: ブ ナ | L5: ナ ラ | M5: そ の 他 広 | N5: 小 計
A6: 齢級
A7: 1 | B7: 面積 | C7: 0.2 | D7: 6.42 | G7: 8.06 | I7: 14.68 | L7: 0.39 | M7: 13.33 | N7: 13.72 | O7: 28.4
B8: 蓄積 | C8: 0 | D8: 0 | G8: 0 | I8: 0 | L8: 0 | M8: 0 | N8: 0 | O8: 0
B9: 成長 | C9: 0 | D9: 0 | G9: 0 | I9: 0 | L9: 0 | M9: 0 | N9: 0 | O9: 0
A10: 2 | B10: 面積 | D10: 4.67 | F10: 0.06 | G10: 4.7 | I10: 9.43 | M10: 4.79 | N10: 4.79 | O10: 14.22
B11: 蓄積 | D11: 0 | F11: 0 | G11: 0 | I11: 0 | M11: 53 | N11: 53 | O11: 53
B12: 成長 | D12: 0 | F12: 0 | G12: 0 | I12: 0 | M12: 7 | N12: 7 | O12: 7
A13: 3 | B13: 面積 | D13: 7.41 | E13: 2.13 | I13: 9.54 | L13: 0.19 | M13: 6.85 | N13: 7.04 | O13: 16.58
B14: 蓄積 | D14: 286 | E14: 118 | I14: 404 | L14: 3 | M14: 151 | N14: 154 | O14: 558
B15: 成長 | D15: 54.9 | E15: 22.7 | I15: 77.6 | L15: 0.3 | M15: 13.4 | N15: 13.7 | O15: 91.3
A16: 4 | B16: 面積 | C16: 0.36 | D16: 55.3 | E16: 0.24 | F16: 0.26 | G16: 1.22 | H16: 0.37 | I16: 57.75 | L16: 0.27 | M16: 32.13 | N16: 32.4 | O16: 90.15
B17: 蓄積 | C17: 46 | D17: 4225 | E17: 12 | F17: 19 | G17: 126 | H17: 12 | I17: 4440 | L17: 9 | M17: 1052 | N17: 1061 | O17: 5501
B18: 成長 | C18: 3.7 | D18: 386.7 | E18: 1.2 | F18: 1.5 | G18: 7.5 | H18: 1 | I18: 401.6 | L18: 0.6 | M18: 71.3 | N18: 71.9 | O18: 473.5
A19: 5 | B19: 面積 | C19: 0.04 | D19: 137.31 | E19: 0.44 | F19: 1.14 | G19: 1.82 | H19: 0.2 | I19: 140.95 | L19: 0.29 | M19: 34.68 | N19: 34.97 | O19: 175.92
B20: 蓄積 | C20: 7 | D20: 15719 | E20: 51 | F20: 574 | G20: 219 | H20: 9 | I20: 16579 | L20: 14 | M20: 1299 | N20: 1313 | O20: 17892
B21: 成長 | C21: 0.3 | D21: 913.9 | E21: 2.9 | F21: 28.8 | G21: 10.1 | H21: 0.6 | I21: 956.6 | L21: 0.7 | M21: 70.2 | N21: 70.9 | O21: 1027.5
A22: 6 | B22: 面積 | C22: 0.11 | D22: 282.89 | E22: 0.3 | F22: 0.46 | G22: 6.82 | H22: 0.99 | I22: 291.57 | L22: 7.99 | M22: 99.31 | N22: 107.3 | O22: 398.87
B23: 蓄積 | C23: 23 | D23: 38798 | E23: 29 | F23: 64 | G23: 1011 | H23: 61 | I23: 39986 | L23: 389 | M23: 4546 | N23: 4935 | O23: 44921
B24: 成長 | C24: 0.8 | D24: 1668.3 | E24: 1.3 | F24: 2.4 | G24: 23.5 | H24: 3.2 | I24: 1699.5 | L24: 15.1 | M24: 185.6 | N24: 200.7 | O24: 1900.2
A25: 7 | B25: 面積 | C25: 0.3 | D25: 385.06 | E25: 1.17 | F25: 1.55 | G25: 12.43 | H25: 6.12 | I25: 406.63 | L25: 19.74 | M25: 128.58 | N25: 148.32 | O25: 554.95
B26: 蓄積 | C26: 69 | D26: 62501 | E26: 189 | F26: 222 | G26: 2086 | H26: 709 | I26: 65776 | L26: 1123 | M26: 7230 | N26: 8353 | O26: 74129
B27: 成長 | C27: 1.8 | D27: 2024.3 | E27: 6.1 | F27: 6.1 | G27: 45.9 | H27: 31.7 | I27: 2115.9 | L27: 37.5 | M27: 224.3 | N27: 261.8 | O27: 2377.7
A28: 8 | B28: 面積 | C28: 3.63 | D28: 989.28 | E28: 0.69 | F28: 6.52 | G28: 18.93 | H28: 11.15 | I28: 1030.2 | L28: 25.74 | M28: 211.36 | N28: 237.1 | O28: 1267.3
B29: 蓄積 | C29: 938 | D29: 178553 | E29: 122 | F29: 1079 | G29: 3550 | H29: 1194 | I29: 185436 | L29: 1802 | M29: 13802 | N29: 15604 | O29: 201040
B30: 成長 | C30: 21.6 | D30: 4673.7 | E30: 3.3 | F30: 24 | G30: 74.9 | H30: 44.4 | I30: 4841.9 | L30: 52.1 | M30: 416.1 | N30: 468.2 | O30: 5310.1
A31: 9 | B31: 面積 | C31: 11.75 | D31: 1374.03 | E31: 0.85 | F31: 16.48 | G31: 80.29 | H31: 10.32 | I31: 1493.72 | L31: 18.05 | M31: 300.1 | N31: 318.15 | O31: 1811.87
B32: 蓄積 | C32: 3256 | D32: 276635 | E32: 172 | F32: 3126 | G32: 18298 | H32: 1134 | I32: 302621 | L32: 1421 | M32: 22945 | N32: 24366 | O32: 326987
B33: 成長 | C33: 55.8 | D33: 5885.3 | E33: 3.8 | F33: 47.9 | G33: 329.8 | H33: 34.9 | I33: 6357.5 | L33: 37.9 | M33: 634.1 | N33: 672 | O33: 7029.5
A34: 10 | B34: 面積 | C34: 29.69 | D34: 1409.96 | E34: 3.89 | F34: 131.34 | G34: 131.91 | H34: 27.33 | I34: 1734.12 | J34: 0.64 | L34: 56.65 | M34: 429.98 | N34: 487.27 | O34: 2221.39
B35: 蓄積 | C35: 8866 | D35: 313369 | E35: 889 | F35: 27091 | G35: 32594 | H35: 3462 | I35: 386271 | J35: 44 | L35: 5037 | M35: 36630 | N35: 41711 | O35: 427982
B36: 成長 | C36: 125.3 | D36: 5713.2 | E36: 16.2 | F36: 353.3 | G36: 490.8 | H36: 102.4 | I36: 6801.2 | J36: 0.1 | L36: 117.2 | M36: 932.2 | N36: 1049.5 | O36: 7850.7
A37: 11 | B37: 面積 | C37: 83.77 | D37: 1461.12 | E37: 7.81 | F37: 622.32 | G37: 500.32 | H37: 21.88 | I37: 2697.22 | L37: 110.16 | M37: 934.02 | N37: 1044.18 | O37: 3741.4
B38: 蓄積 | C38: 26474 | D38: 350385 | E38: 1859 | F38: 135519 | G38: 129682 | H38: 3162 | I38: 647081 | L38: 10695 | M38: 89597 | N38: 100292 | O38: 747373 | P38: 伐 跡 | R38: 3.01
B39: 成長 | C39: 364.1 | D39: 5647.9 | E39: 30.2 | F39: 1501 | G39: 1815.6 | H39: 64 | I39: 9422.8 | L39: 208.8 | M39: 1761.4 | N39: 1970.2 | O39: 11393 | P39: 未立木地 | R39: 140.28
A40: 12 | B40: 面積 | C40: 294.6 | D40: 1058.65 | E40: 24.37 | F40: 1057.11 | G40: 2271.22 | H40: 9.01 | I40: 4714.96 | L40: 186.24 | M40: 1710.79 | N40: 1897.03 | O40: 6611.99 | P40: 岩石地 | R40: 13.43
B41: 蓄積 | C41: 98702 | D41: 275149 | E41: 6403 | F41: 237551 | G41: 620593 | H41: 1436 | I41: 1239834 | L41: 18983 | M41: 173814 | N41: 192797 | O41: 1432631 | P41: 崩壊地 | R41: 37.8
B42: 成長 | C42: 1257.9 | D42: 3891.2 | E42: 90.4 | F42: 2186.3 | G42: 8002.2 | H42: 27.3 | I42: 15455.3 | L42: 363.1 | M42: 3297.1 | N42: 3660.2 | O42: 19115.5 | P42: はげ山
A43: 13 | B43: 面積 | C43: 438.68 | D43: 773.79 | E43: 32.95 | F43: 897.8 | G43: 3729.57 | H43: 16.12 | I43: 5888.91 | L43: 204.28 | M43: 2711.57 | N43: 2915.85 | O43: 8804.76 | P43: 施設敷 | R43: 159.94
B44: 蓄積 | C44: 151628 | D44: 208918 | E44: 8907 | F44: 206961 | G44: 1064112 | H44: 2707 | I44: 1643233 | L44: 22925 | M44: 294271 | N44: 317196 | O44: 1960429 | P44: 林地開発 | R44: 21.99
B45: 成長 | C45: 1797.5 | D45: 2871 | E45: 121.4 | F45: 1878.1 | G45: 13311.5 | H45: 50.6 | I45: 20030.1 | L45: 350.3 | M45: 4677.3 | N45: 5027.6 | O45: 25057.7 | P45: 計 | R45: =SUM(R38:R44) -> 376.45
A46: 14 | B46: 面積 | C46: 520.29 | D46: 631 | E46: 56.43 | F46: 971.3 | G46: 3360.16 | H46: 29.69 | I46: 5568.87 | L46: 362.99 | M46: 3757.71 | N46: 4120.7 | O46: 9689.57 | P46: 竹 林 | R46: 76.35
B47: 蓄積 | C47: 189094 | D47: 176471 | E47: 15938 | F47: 228635 | G47: 996467 | H47: 5457 | I47: 1612062 | L47: 42332 | M47: 430037 | N47: 472369 | O47: 2084431 | P47: 更新 困難地 | Q47: 面積 | R47: 0.06
B48: 成長 | C48: 1880.6 | D48: 2107.3 | E48: 192.1 | F48: 1882.9 | G48: 10609.3 | H48: 87.2 | I48: 16759.4 | L48: 462.7 | M48: 4915.4 | N48: 5378.1 | O48: 22137.5 | Q48: 蓄積 | R48: 6
A49: 15 以上 | B49: 面積 | C49: 491.11 | D49: 1663.64 | E49: 242.95 | F49: 2328.43 | G49: 1579.83 | H49: 380.7 | I49: 6686.66 | J49: 0.08 | L49: 972.11 | M49: 11426.46 | N49: 12398.65 | O49: 19085.31 | Q49: 成長 | R49: 0.2
B50: 蓄積 | C50: 189812 | D50: 502786 | E50: 71303 | F50: 616778 | G50: 478050 | H50: 85188 | I50: 1943917 | J50: 6 | L50: 122422 | M50: 1407714 | N50: 1530142 | O50: 3474059
B51: 成長 | C51: 673.5 | D51: 777.2 | E51: 113.2 | F51: 2811.2 | G51: 2981.3 | H51: 513.9 | I51: 7870.3 | J51: 0 | L51: 589.8 | M51: 5801.7 | N51: 6391.5 | O51: 14261.8 | P51: 総 合 計
A52: 計 | B52: 面積 | C52: =SUM(C7,C10,C13,C16,C19,C22,C25,C28,C31,C34,C37,C40,C43,C46,C49) -> 1874.53 | D52: 10240.53 | E52: 374.22 | F52: 6034.77 | G52: 11707.28 | H52: 513.88 | I52: =SUM(C52:H52) -> 30745.21 | J52: =SUM(J7,J10,J13,J16,J19,J22,J25,J28,J31,J34,J37,J40,J43,J46,J49) -> 0.72 | K52: =SUM(K7,K10,K13,K16,K19,K22,K25,K28,K31,K34,K37,K40,K43,K46,K49) -> 0 | L52: =SUM(L7,L10,L13,L16,L19,L22,L25,L28,L31,L34,L37,L40,L43,L46,L49) -> 1965.09 | M52: =SUM(M7,M10,M13,M16,M19,M22,M25,M28,M31,M34,M37,M40,M43,M46,M49) -> 21801.66 | N52: =SUM(J52:M52) -> 23767.47 | O52: =SUM(N52,I52) -> 54512.68 | P52: 面 積 | R52: =SUM(O52,R45,R47,R46) -> 54965.54
B53: 蓄積 | C53: 668915 | D53: 2403795 | E53: 105992 | F53: 1457619 | G53: 3346788 | H53: 104531 | I53: =SUM(C53:H53) -> 8087640 | J53: =SUM(J8,J11,J14,J17,J20,J23,J26,J29,J32,J35,J38,J41,J44,J47,J50) -> 50 | K53: 0 | L53: 227155 | M53: 2483141 | N53: =SUM(J53:M53) -> 2710346 | O53: 10797986 | P53: 蓄 積 | R53: =O53+R48 -> 10797992
B54: 成長 | C54: 6182.9 | D54: 36614.9 | E54: 604.8 | F54: 10723.5 | G54: 37702.4 | H54: 961.2 | I54: =SUM(C54:H54) -> 92789.7 | J54: 0.1 | K54: 0 | L54: 2236.1 | M54: 23007.1 | N54: =SUM(J54:M54) -> 25243.3 | O54: 118033 | P54: 成長量 | R54: =O54+R49 -> 118033.2

Sheet 松本
A1: 第4表 地域振興局別・資源構成表
A3: 松本地域振興局 | O3: 単位 面積 : ha、蓄積 成長量 : ㎥
B4: 樹種 | C4: 針 葉 樹 | J4: 広 葉 樹 | O4: 計
C5: ス ギ | D5: ヒ ノ キ | E5: サ ワ ラ | F5: ア カ マ ツ | G5: カ ラ マ ツ | H5: そ の 他 針 | I5: 小 計 | J5: ク ヌ ギ | K5: ブ ナ | L5: ナ ラ | M5: そ の 他 広 | N5: 小 計
A6: 齢級
A7: 1 | B7: 面積 | C7: 5.83 | D7: 3.5 | F7: 4.42 | G7: 73.8 | I7: 87.55 | L7: 30.43 | M7: 51.23 | N7: 81.66 | O7: 169.21
B8: 蓄積 | C8: 0 | D8: 0 | F8: 0 | G8: 0 | I8: 0 | L8: 0 | M8: 0 | N8: 0 | O8: 0
B9: 成長 | C9: 0 | D9: 0 | F9: 0 | G9: 0 | I9: 0 | L9: 0 | M9: 0 | N9: 0 | O9: 0
A10: 2 | B10: 面積 | C10: 0.82 | D10: 20.05 | F10: 0.09 | G10: 33.63 | H10: 4.82 | I10: 59.41 | J10: 0.2 | L10: 29.42 | M10: 216.24 | N10: 245.86 | O10: 305.27
B11: 蓄積 | C11: 0 | D11: 0 | F11: 0 | G11: 0 | H11: 0 | I11: 0 | J11: 4 | L11: 315 | M11: 2775 | N11: 3094 | O11: 3094
B12: 成長 | C12: 0 | D12: 0 | F12: 0 | G12: 0 | H12: 0 | I12: 0 | J12: 1.2 | L12: 43.7 | M12: 379.4 | N12: 424.3 | O12: 424.3
A13: 3 | B13: 面積 | C13: 0.03 | D13: 12.67 | F13: 2.2 | I13: 14.9 | K13: 6.68 | L13: 0.07 | M13: 62.12 | N13: 68.87 | O13: 83.77
B14: 蓄積 | C14: 3 | D14: 387 | F14: 130 | I14: 520 | K14: 33 | L14: 2 | M14: 1365 | N14: 1400 | O14: 1920
B15: 成長 | C15: 0.7 | D15: 78.6 | F15: 17.4 | I15: 96.7 | K15: 7.2 | L15: 0.2 | M15: 120.9 | N15: 128.3 | O15: 225
A16: 4 | B16: 面積 | C16: 0.43 | D16: 18.69 | F16: 4.92 | G16: 0.65 | H16: 0.1 | I16: 24.79 | J16: 1.99 | L16: 0.59 | M16: 44.96 | N16: 47.54 | O16: 72.33
B17: 蓄積 | C17: 35 | D17: 903 | F17: 422 | G17: 163 | H17: 3 | I17: 1526 | J17: 115 | L17: 55 | M17: 1304 | N17: 1474 | O17: 3000
B18: 成長 | C18: 4.6 | D18: 91.8 | F18: 34.6 | G18: 11.3 | H18: 0.3 | I18: 142.6 | J18: 5.4 | L18: 3.8 | M18: 88.6 | N18: 97.8 | O18: 240.4
A19: 5 | B19: 面積 | C19: 1.56 | D19: 88.76 | F19: 12.48 | G19: 10.55 | H19: 0.61 | I19: 113.96 | J19: 4.73 | L19: 4.62 | M19: 80.61 | N19: 89.96 | O19: 203.92
B20: 蓄積 | C20: 221 | D20: 7264 | F20: 1169 | G20: 1080 | H20: 234 | I20: 9968 | J20: 294 | K20: 44 | L20: 305 | M20: 3858 | N20: 4501 | O20: 14469
B21: 成長 | C21: 16.3 | D21: 455.2 | F21: 62.5 | G21: 58.7 | H21: 15.9 | I21: 608.6 | J21: 9.3 | K21: 3.5 | L21: 15.7 | M21: 204.5 | N21: 233 | O21: 841.6
A22: 6 | B22: 面積 | C22: 2.3 | D22: 138.81 | F22: 13.65 | G22: 25.48 | H22: 4.44 | I22: 184.68 | J22: 11.25 | L22: 19.4 | M22: 239.84 | N22: 270.49 | O22: 455.17
B23: 蓄積 | C23: 607 | D23: 21219 | F23: 2747 | G23: 5524 | H23: 1242 | I23: 31339 | J23: 812 | K23: 112 | L23: 1144 | M23: 11973 | N23: 14041 | O23: 45380
B24: 成長 | C24: 29.8 | D24: 1102.9 | F24: 110.1 | G24: 210.3 | H24: 67.4 | I24: 1520.5 | J24: 18.6 | K24: 7.4 | L24: 46.8 | M24: 486.2 | N24: 559 | O24: 2079.5
A25: 7 | B25: 面積 | C25: 13.06 | D25: 267.64 | F25: 71.74 | G25: 39.4 | H25: 3.5 | I25: 395.34 | J25: 27.85 | L25: 33.74 | M25: 501.09 | N25: 562.68 | O25: 958.02
B26: 蓄積 | C26: 3006 | D26: 36321 | E26: 6 | F26: 11846 | G26: 6522 | H26: 2091 | I26: 59792 | J26: 2141 | L26: 2028 | M26: 26680 | N26: 30849 | O26: 90641
B27: 成長 | C27: 113.5 | D27: 1486.8 | E27: 0.2 | F27: 333.7 | G27: 186.3 | H27: 92 | I27: 2212.5 | J27: 33 | L27: 62.4 | M27: 822.7 | N27: 918.1 | O27: 3130.6
A28: 8 | B28: 面積 | C28: 25.46 | D28: 338.47 | E28: 1.77 | F28: 92.91 | G28: 152.69 | H28: 54.55 | I28: 665.85 | J28: 48.65 | L28: 60.21 | M28: 627.83 | N28: 736.69 | O28: 1402.54
B29: 蓄積 | C29: 7868 | D29: 49572 | E29: 139 | F29: 13512 | G29: 26471 | H29: 6789 | I29: 104351 | J29: 3851 | L29: 4155 | M29: 39978 | N29: 47984 | O29: 152335
B30: 成長 | C30: 217.4 | D30: 1576.5 | E30: 5.6 | F30: 329.2 | G30: 642.3 | H30: 250.7 | I30: 3021.7 | J30: 35.6 | L30: 125.7 | M30: 1209.5 | N30: 1370.8 | O30: 4392.5
A31: 9 | B31: 面積 | C31: 60.47 | D31: 400.06 | E31: 0.41 | F31: 252.3 | G31: 226.6 | H31: 68.04 | I31: 1007.88 | J31: 43.71 | L31: 62.91 | M31: 456.06 | N31: 562.68 | O31: 1570.56
B32: 蓄積 | C32: 20746 | D32: 53863 | E32: 58 | F32: 43871 | G32: 41765 | H32: 7445 | I32: 167748 | J32: 3670 | L32: 5024 | M32: 34186 | N32: 42880 | O32: 210628
B33: 成長 | C33: 363.3 | D33: 1548 | E33: 1.7 | F33: 691.1 | G33: 820.9 | H33: 246.9 | I33: 3671.9 | J33: 17.7 | L33: 139.2 | M33: 939.4 | N33: 1096.3 | O33: 4768.2
A34: 10 | B34: 面積 | C34: 153.69 | D34: 456.27 | E34: 0.48 | F34: 826.21 | G34: 865.57 | H34: 197.23 | I34: 2499.45 | J34: 65.69 | L34: 62.39 | M34: 782.57 | N34: 910.65 | O34: 3410.1
B35: 蓄積 | C35: 56586 | D35: 66771 | E35: 87 | F35: 152057 | G35: 177234 | H35: 24155 | I35: 476890 | J35: 5568 | L35: 5463 | M35: 65884 | N35: 76915 | O35: 553805
B36: 成長 | C36: 869.4 | D36: 1466.6 | E36: 1.8 | F36: 2096.2 | G36: 2913.9 | H36: 658.2 | I36: 8006.1 | J36: 13 | L36: 140.3 | M36: 1675.9 | N36: 1829.2 | O36: 9835.3
A37: 11 | B37: 面積 | C37: 193.31 | D37: 227.07 | E37: 1.53 | F37: 1747.18 | G37: 1518.73 | H37: 176.89 | I37: 3864.71 | J37: 29.76 | L37: 61.86 | M37: 850.12 | N37: 941.74 | O37: 4806.45
B38: 蓄積 | C38: 76981 | D38: 38978 | E38: 299 | F38: 347291 | G38: 329901 | H38: 21509 | I38: 814959 | J38: 2591 | L38: 6132 | M38: 77851 | N38: 86574 | O38: 901533 | P38: 伐 跡 | R38: 165.97
B39: 成長 | C39: 947.5 | D39: 745.8 | E39: 5.7 | F39: 3934.8 | G39: 4788.7 | H39: 502.1 | I39: 10924.6 | J39: 0 | L39: 120.7 | M39: 1503.6 | N39: 1624.3 | O39: 12548.9 | P39: 未立木地 | R39: 425.59
A40: 12 | B40: 面積 | C40: 290.83 | D40: 57.76 | E40: 0.16 | F40: 3345.44 | G40: 4361.53 | H40: 34.64 | I40: 8090.36 | J40: 46.01 | L40: 69.21 | M40: 1204.56 | N40: 1319.78 | O40: 9410.14 | P40: 岩石地 | R40: 765.34
B41: 蓄積 | C41: 121102 | D41: 10008 | E41: 29 | F41: 689689 | G41: 1043105 | H41: 4942 | I41: 1868875 | J41: 3928 | L41: 7174 | M41: 118344 | N41: 129446 | O41: 1998321 | P41: 崩壊地 | R41: 462.21
B42: 成長 | C42: 1252 | D42: 164 | E42: 0.6 | F42: 6714.9 | G42: 13565.9 | H42: 93.6 | I42: 21791 | J42: 0 | L42: 134.5 | M42: 2218.3 | N42: 2352.8 | O42: 24143.8 | P42: はげ山 | R42: 52.21
A43: 13 | B43: 面積 | C43: 369.82 | D43: 57.54 | E43: 1.76 | F43: 2998.64 | G43: 7170.25 | H43: 120.3 | I43: 10718.31 | J43: 127.04 | L43: 183.63 | M43: 2858.32 | N43: 3168.99 | O43: 13887.3 | P43: 施設敷 | R43: 114.02
B44: 蓄積 | C44: 157472 | D44: 11200 | E44: 373 | F44: 634574 | G44: 1726123 | H44: 16085 | I44: 2545827 | J44: 10563 | L44: 19860 | M44: 294825 | N44: 325248 | O44: 2871075 | P44: 林地開発 | R44: 19.89
B45: 成長 | C45: 1601.4 | D45: 178.2 | E45: 5.7 | F45: 6059.8 | G45: 21906.2 | H45: 300 | I45: 30051.3 | J45: 0 | L45: 314.3 | M45: 4709.1 | N45: 5023.4 | O45: 35074.7 | P45: 計 | R45: =SUM(R38:R44) -> 2005.23
A46: 14 | B46: 面積 | C46: 382.51 | D46: 83.23 | E46: 19.56 | F46: 2066.43 | G46: 6716.6 | H46: 32.3 | I46: 9300.63 | J46: 275.78 | L46: 328.91 | M46: 6150.98 | N46: 6755.67 | O46: 16056.3 | P46: 竹 林 | R46: 227.08
B47: 蓄積 | C47: 163530 | D47: 17878 | E47: 2879 | F47: 452622 | G47: 1712942 | H47: 4395 | I47: 2354246 | J47: 23401 | L47: 37030 | M47: 671601 | N47: 732032 | O47: 3086278 | P47: 更新 困難地 | Q47: 面積 | R47: 7.86
B48: 成長 | C48: 1543.2 | D48: 248.3 | E48: 42.2 | F48: 3727.6 | G48: 19010.1 | H48: 75.9 | I48: 24647.3 | J48: 0 | L48: 432.4 | M48: 7991.2 | N48: 8423.6 | O48: 33070.9 | Q48: 蓄積 | R48: 331
A49: 15 以上 | B49: 面積 | C49: 871.45 | D49: 890.97 | E49: 73.98 | F49: 6532.38 | G49: 5514.04 | H49: 792.62 | I49: 14675.44 | J49: 242.98 | K49: 15.31 | L49: 548.9 | M49: 15069.39 | N49: 15876.58 | O49: 30552.02 | Q49: 成長 | R49: 7.7
B50: 蓄積 | C50: 428949 | D50: 208657 | E50: 15002 | F50: 1551118 | G50: 1500442 | H50: 168331 | I50: 3872499 | J50: 20550 | K50: 2057 | L50: 65679 | M50: 1721218 | N50: 1809504 | O50: 5682003
B51: 成長 | C51: 2531.1 | D51: 752.3 | E51: 67 | F51: 6617.2 | G51: 8905.5 | H51: 677.7 | I51: 19550.8 | J51: 0 | K51: 3.1 | L51: 448.8 | M51: 10140.5 | N51: 10592.4 | O51: 30143.2 | P51: 総 合 計
A52: 計 | B52: 面積 | C52: =SUM(C7,C10,C13,C16,C19,C22,C25,C28,C31,C34,C37,C40,C43,C46,C49) -> 2371.57 | D52: 3061.49 | E52: 99.65 | F52: 17970.99 | G52: 26709.52 | H52: 1490.04 | I52: =SUM(C52:H52) -> 51703.26 | J52: =SUM(J7,J10,J13,J16,J19,J22,J25,J28,J31,J34,J37,J40,J43,J46,J49) -> 925.64 | K52: =SUM(K7,K10,K13,K16,K19,K22,K25,K28,K31,K34,K37,K40,K43,K46,K49) -> 21.99 | L52: =SUM(L7,L10,L13,L16,L19,L22,L25,L28,L31,L34,L37,L40,L43,L46,L49) -> 1496.29 | M52: =SUM(M7,M10,M13,M16,M19,M22,M25,M28,M31,M34,M37,M40,M43,M46,M49) -> 29195.92 | N52: =SUM(J52:M52) -> 31639.84 | O52: =SUM(N52,I52) -> 83343.1 | P52: 面 積 | R52: =SUM(O52,R45,R47,R46) -> 85583.27
B53: 蓄積 | C53: 1037106 | D53: 523021 | E53: 18872 | F53: 3901048 | G53: 6571272 | H53: 257221 | I53: =SUM(C53:H53) -> 12308540 | J53: =SUM(J8,J11,J14,J17,J20,J23,J26,J29,J32,J35,J38,J41,J44,J47,J50) -> 77488 | K53: 2246 | L53: 154366 | M53: 3071842 | N53: =SUM(J53:M53) -> 3305942 | O53: 15614482 | P53: 蓄 積 | R53: =O53+R48 -> 15614813
B54: 成長 | C54: 9490.2 | D54: 9895 | E54: 130.5 | F54: 30729.1 | G54: 73020.1 | H54: 2980.7 | I54: =SUM(C54:H54) -> 126245.6 | J54: 133.8 | K54: 21.2 | L54: 2028.5 | M54: 32489.8 | N54: =SUM(J54:M54) -> 34673.3 | O54: 160918.9 | P54: 成長量 | R54: =O54+R49 -> 160926.6

Sheet 北アルプス
A1: 第4表 地域振興局別・資源構成表
A3: 北アルプス地域振興局 | O3: 単位 面積 : ha、蓄積 成長量 : ㎥
B4: 樹種 | C4: 針 葉 樹 | J4: 広 葉 樹 | O4: 計
C5: ス ギ | D5: ヒ ノ キ | E5: サ ワ ラ | F5: ア カ マ ツ | G5: カ ラ マ ツ | H5: そ の 他 針 | I5: 小 計 | J5: ク ヌ ギ | K5: ブ ナ | L5: ナ ラ | M5: そ の 他 広 | N5: 小 計
A6: 齢級
A7: 1 | B7: 面積 | C7: 1.54 | D7: 0.62 | F7: 0.11 | G7: 13.33 | I7: 15.6 | L7: 3.62 | M7: 37.48 | N7: 41.1 | O7: 56.7
B8: 蓄積 | C8: 0 | D8: 0 | F8: 0 | G8: 0 | I8: 0 | L8: 0 | M8: 0 | N8: 0 | O8: 0
B9: 成長 | C9: 0 | D9: 0 | F9: 0 | G9: 0 | I9: 0 | L9: 0 | M9: 0 | N9: 0 | O9: 0
A10: 2 | B10: 面積 | D10: 3.29 | G10: 26.2 | I10: 29.49 | J10: 0.52 | L10: 10.72 | M10: 13.18 | N10: 24.42 | O10: 53.91
B11: 蓄積 | D11: 0 | G11: 0 | I11: 0 | J11: 7 | L11: 117 | M11: 123 | N11: 247 | O11: 247
B12: 成長 | D12: 0 | G12: 0 | I12: 0 | J12: 2.3 | L12: 17 | M12: 16.2 | N12: 35.5 | O12: 35.5
A13: 3 | B13: 面積 | C13: 0.85 | D13: 24.61 | F13: 0.22 | I13: 25.68 | L13: 2.92 | M13: 15.79 | N13: 18.71 | O13: 44.39
B14: 蓄積 | C14: 41 | D14: 578 | F14: 13 | I14: 632 | L14: 64 | M14: 317 | N14: 381 | O14: 1013
B15: 成長 | C15: 12.2 | D15: 110.1 | F15: 1.8 | I15: 124.1 | L15: 5.6 | M15: 29.6 | N15: 35.2 | O15: 159.3
A16: 4 | B16: 面積 | C16: 39.16 | D16: 81.73 | F16: 0.24 | G16: 0.65 | H16: 0.13 | I16: 121.91 | L16: 1.28 | M16: 27.23 | N16: 28.51 | O16: 150.42
B17: 蓄積 | C17: 3082 | D17: 3265 | F17: 13 | G17: 47 | H17: 2 | I17: 6409 | L17: 38 | M17: 703 | N17: 741 | O17: 7150
B18: 成長 | C18: 397.5 | D18: 328.4 | F18: 1.1 | G18: 3.8 | H18: 0.2 | I18: 731 | L18: 2.7 | M18: 47.7 | N18: 50.4 | O18: 781.4
A19: 5 | B19: 面積 | C19: 28.76 | D19: 88.79 | F19: 1.48 | G19: 11.47 | H19: 0.71 | I19: 131.21 | J19: 0.6 | K19: 0.45 | L19: 5.69 | M19: 137.47 | N19: 144.21 | O19: 275.42
B20: 蓄積 | C20: 3581 | D20: 5746 | F20: 114 | G20: 1118 | H20: 23 | I20: 10582 | J20: 30 | K20: 14 | L20: 221 | M20: 5619 | N20: 5884 | O20: 16466
B21: 成長 | C21: 276.7 | D21: 365.3 | F21: 6 | G21: 61.5 | H21: 1.5 | I21: 711 | J21: 0.9 | K21: 1.1 | L21: 11.5 | M21: 301.8 | N21: 315.3 | O21: 1026.3
A22: 6 | B22: 面積 | C22: 22.5 | D22: 129.29 | F22: 6.98 | G22: 27.74 | H22: 0.38 | I22: 186.89 | J22: 0.14 | L22: 15.34 | M22: 315.89 | N22: 331.37 | O22: 518.26
B23: 蓄積 | C23: 4365 | D23: 9577 | F23: 737 | G23: 3540 | H23: 17 | I23: 18236 | J23: 8 | L23: 701 | M23: 12908 | N23: 13617 | O23: 31853
B24: 成長 | C24: 220.3 | D24: 512.6 | F24: 33.3 | G24: 135.2 | H24: 0.9 | I24: 902.3 | J24: 0.2 | L24: 28.3 | M24: 513.4 | N24: 541.9 | O24: 1444.2
A25: 7 | B25: 面積 | C25: 97.71 | D25: 72.27 | F25: 4.55 | G25: 16.21 | H25: 0.1 | I25: 190.84 | J25: 0.48 | K25: 7.58 | L25: 11.73 | M25: 446.46 | N25: 466.25 | O25: 657.09
B26: 蓄積 | C26: 20086 | D26: 6812 | F26: 594 | G26: 3486 | H26: 3 | I26: 30981 | J26: 30 | K26: 242 | L26: 624 | M26: 22785 | N26: 23681 | O26: 54662
B27: 成長 | C27: 821.6 | D27: 310.6 | F27: 17.8 | G27: 104.4 | H27: 0.1 | I27: 1254.5 | J27: 0.4 | K27: 13.6 | L27: 19.2 | M27: 697.9 | N27: 731.1 | O27: 1985.6
A28: 8 | B28: 面積 | C28: 240.46 | D28: 77.91 | F28: 9.02 | G28: 26.82 | H28: 0.1 | I28: 354.31 | J28: 1.57 | L28: 22.73 | M28: 449.52 | N28: 473.82 | O28: 828.13
B29: 蓄積 | C29: 58629 | D29: 11981 | F29: 1249 | G29: 4830 | H29: 8 | I29: 76697 | J29: 115 | L29: 1387 | M29: 25841 | N29: 27343 | O29: 104040
B30: 成長 | C30: 1711.8 | D30: 385.5 | F30: 32.5 | G30: 115.5 | H30: 0.3 | I30: 2245.6 | J30: 0.9 | L30: 41.9 | M30: 789 | N30: 831.8 | O30: 3077.4
A31: 9 | B31: 面積 | C31: 355.81 | D31: 194.74 | E31: 0.1 | F31: 42.97 | G31: 33.55 | H31: 6.87 | I31: 634.04 | J31: 6.24 | K31: 15.13 | L31: 22.76 | M31: 584.87 | N31: 629 | O31: 1263.04
B32: 蓄積 | C32: 99625 | D32: 25116 | E32: 9 | F32: 7131 | G32: 5952 | H32: 762 | I32: 138595 | J32: 460 | K32: 711 | L32: 1606 | M32: 38496 | N32: 41273 | O32: 179868
B33: 成長 | C33: 1890.9 | D33: 747.6 | E33: 0.3 | F33: 114.5 | G33: 114.8 | H33: 25.1 | I33: 2893.2 | J33: 1.7 | K33: 25.6 | L33: 42.3 | M33: 1007.1 | N33: 1076.7 | O33: 3969.9
A34: 10 | B34: 面積 | C34: 587.55 | D34: 181.63 | E34: 0.11 | F34: 164.7 | G34: 57.13 | H34: 35.41 | I34: 1026.53 | J34: 3.13 | K34: 6.23 | L34: 66.07 | M34: 767.75 | N34: 843.18 | O34: 1869.71
B35: 蓄積 | C35: 183656 | D35: 23489 | E35: 20 | F35: 28213 | G35: 12941 | H35: 4144 | I35: 252463 | J35: 227 | K35: 343 | L35: 5286 | M35: 58189 | N35: 64045 | O35: 316508
B36: 成長 | C36: 2967.4 | D36: 540.8 | E36: 0.4 | F36: 403.3 | G36: 204.2 | H36: 114 | I36: 4230.1 | J36: 0.5 | K36: 10.6 | L36: 134.3 | M36: 1480.9 | N36: 1626.3 | O36: 5856.4
A37: 11 | B37: 面積 | C37: 981.61 | D37: 127.59 | E37: 1.43 | F37: 427.85 | G37: 64.12 | H37: 41.76 | I37: 1644.36 | J37: 0.3 | K37: 78.9 | L37: 44.17 | M37: 955.59 | N37: 1078.96 | O37: 2723.32
B38: 蓄積 | C38: 331247 | D38: 15880 | E38: 167 | F38: 76301 | G38: 13466 | H38: 4878 | I38: 441939 | J38: 19 | K38: 4425 | L38: 3881 | M38: 82007 | N38: 90332 | O38: 532271 | P38: 伐 跡 | R38: 72.99
B39: 成長 | C39: 4330.5 | D39: 355.2 | E39: 4 | F39: 890 | G39: 198.1 | H39: 112.5 | I39: 5890.3 | J39: 0 | K39: 115.4 | L39: 72.6 | M39: 1528.2 | N39: 1716.2 | O39: 7606.5 | P39: 未立木地 | R39: 273.62
A40: 12 | B40: 面積 | C40: 1045.36 | D40: 45.21 | F40: 677.13 | G40: 255.96 | H40: 0.55 | I40: 2024.21 | J40: 0.99 | K40: 104.44 | L40: 100.01 | M40: 1497.11 | N40: 1702.55 | O40: 3726.76 | P40: 岩石地 | R40: 1576.85
B41: 蓄積 | C41: 382425 | D41: 5620 | F41: 130368 | G41: 59180 | H41: 82 | I41: 577675 | J41: 75 | K41: 7844 | L41: 8849 | M41: 133567 | N41: 150335 | O41: 728010 | P41: 崩壊地 | R41: 191.44
B42: 成長 | C42: 4198.2 | D42: 108.8 | F42: 1331.4 | G42: 772.2 | H42: 1.6 | I42: 6412.2 | J42: 0 | K42: 186.8 | L42: 162.6 | M42: 2453.6 | N42: 2803 | O42: 9215.2 | P42: はげ山 | R42: 0.76
A43: 13 | B43: 面積 | C43: 976.88 | D43: 38.65 | F43: 661.82 | G43: 872.26 | H43: 4.09 | I43: 2553.7 | J43: 6.58 | K43: 23.51 | L43: 170.96 | M43: 2480.86 | N43: 2681.91 | O43: 5235.61 | P43: 施設敷 | R43: 33.99
B44: 蓄積 | C44: 356160 | D44: 6533 | F44: 130195 | G44: 198633 | H44: 579 | I44: 692100 | J44: 472 | K44: 1350 | L44: 16771 | M44: 230762 | N44: 249355 | O44: 941455 | P44: 林地開発 | R44: 48.14
B45: 成長 | C45: 3904.4 | D45: 111.1 | F45: 1295.5 | G45: 2551.8 | H45: 10.8 | I45: 7873.6 | J45: 0 | K45: 31.8 | L45: 272.8 | M45: 3810 | N45: 4114.6 | O45: 11988.2 | P45: 計 | R45: =SUM(R38:R44) -> 2197.79
A46: 14 | B46: 面積 | C46: 894.64 | D46: 26.64 | F46: 428.5 | G46: 947.36 | H46: 3.02 | I46: 2300.16 | J46: 16.5 | K46: 43.18 | L46: 244.04 | M46: 3179.15 | N46: 3482.87 | O46: 5783.03 | P46: 竹 林 | R46: 29.21
B47: 蓄積 | C47: 339576 | D47: 4963 | F47: 90370 | G47: 236046 | H47: 450 | I47: 671405 | J47: 1277 | K47: 3930 | L47: 25329 | M47: 315687 | N47: 346223 | O47: 1017628 | P47: 更新 困難地 | Q47: 面積 | R47: 84.38
B48: 成長 | C48: 3388 | D48: 69.2 | F48: 751.9 | G48: 2630.5 | H48: 8 | I48: 6847.6 | J48: 0 | K48: 76.8 | L48: 319.4 | M48: 4041.2 | N48: 4437.4 | O48: 11285 | Q48: 蓄積 | R48: 24471
A49: 15 以上 | B49: 面積 | C49: 1626.4 | D49: 150.63 | E49: 6.93 | F49: 1402.53 | G49: 1085.45 | H49: 405.64 | I49: 4677.58 | J49: 49.72 | K49: 1822.98 | L49: 1049.04 | M49: 17010.6 | N49: 19932.34 | O49: 24609.92 | Q49: 成長 | R49: 0
B50: 蓄積 | C50: 705445 | D50: 30961 | E50: 1287 | F50: 322827 | G50: 293550 | H50: 85315 | I50: 1439385 | J50: 3790 | K50: 226946 | L50: 115398 | M50: 1792584 | N50: 2138718 | O50: 3578103
B51: 成長 | C51: 4430.5 | D51: 101.5 | E51: 3.1 | F51: 1401.6 | G51: 1720.5 | H51: 380 | I51: 8037.2 | J51: 0 | K51: 1224.1 | L51: 596 | M51: 6530.3 | N51: 8350.4 | O51: 16387.6 | P51: 総 合 計
A52: 計 | B52: 面積 | C52: =SUM(C7,C10,C13,C16,C19,C22,C25,C28,C31,C34,C37,C40,C43,C46,C49) -> 6899.23 | D52: 1243.6 | E52: 8.57 | F52: 3828.1 | G52: 3438.25 | H52: 498.76 | I52: =SUM(C52:H52) -> 15916.51 | J52: =SUM(J7,J10,J13,J16,J19,J22,J25,J28,J31,J34,J37,J40,J43,J46,J49) -> 86.77 | K52: =SUM(K7,K10,K13,K16,K19,K22,K25,K28,K31,K34,K37,K40,K43,K46,K49) -> 2102.4 | L52: =SUM(L7,L10,L13,L16,L19,L22,L25,L28,L31,L34,L37,L40,L43,L46,L49) -> 1771.08 | M52: =SUM(M7,M10,M13,M16,M19,M22,M25,M28,M31,M34,M37,M40,M43,M46,M49) -> 27918.95 | N52: =SUM(J52:M52) -> 31879.2 | O52: =SUM(N52,I52) -> 47795.71 | P52: 面 積 | R52: =SUM(O52,R45,R47,R46) -> 50107.09
B53: 蓄積 | C53: 2487918 | D53: 150521 | E53: 1483 | F53: 788125 | G53: 832789 | H53: 96263 | I53: =SUM(C53:H53) -> 4357099 | J53: =SUM(J8,J11,J14,J17,J20,J23,J26,J29,J32,J35,J38,J41,J44,J47,J50) -> 6510 | K53: 245805 | L53: 180272 | M53: 2719588 | N53: =SUM(J53:M53) -> 3152175 | O53: 7509274 | P53: 蓄 積 | R53: =O53+R48 -> 7533745
B54: 成長 | C54: 28550 | D54: 4046.7 | E54: 7.8 | F54: 6280.7 | G54: 8612.5 | H54: 655 | I54: =SUM(C54:H54) -> 48152.7 | J54: 6.9 | K54: 1685.8 | L54: 1726.2 | M54: 23246.9 | N54: =SUM(J54:M54) -> 26665.8 | O54: 74818.5 | P54: 成長量 | R54: =O54+R49 -> 74818.5

Sheet 長野
A1: 第4表 地域振興局別・資源構成表
A3: 長野地域振興局 | O3: 単位 面積 : ha、蓄積 成長量 : ㎥
B4: 樹種 | C4: 針 葉 樹 | J4: 広 葉 樹 | O4: 計
C5: ス ギ | D5: ヒ ノ キ | E5: サ ワ ラ | F5: ア カ マ ツ | G5: カ ラ マ ツ | H5: そ の 他 針 | I5: 小 計 | J5: ク ヌ ギ | K5: ブ ナ | L5: ナ ラ | M5: そ の 他 広 | N5: 小 計
A6: 齢級
A7: 1 | B7: 面積 | C7: 13.47 | D7: 4.03 | F7: 1.14 | G7: 35.62 | I7: 54.26 | L7: 4.7 | M7: 12.15 | N7: 16.85 | O7: 71.11
B8: 蓄積 | C8: 0 | D8: 0 | F8: 0 | G8: 0 | I8: 0 | L8: 0 | M8: 0 | N8: 0 | O8: 0
B9: 成長 | C9: 0 | D9: 0 | F9: 0 | G9: 0 | I9: 0 | L9: 0 | M9: 0 | N9: 0 | O9: 0
A10: 2 | B10: 面積 | C10: 0.77 | D10: 0.04 | F10: 0.53 | G10: 21.76 | I10: 23.1 | J10: 0.71 | L10: 6.51 | M10: 22.31 | N10: 29.53 | O10: 52.63
B11: 蓄積 | C11: 0 | D11: 0 | F11: 0 | G11: 0 | I11: 0 | J11: 13 | L11: 93 | M11: 273 | N11: 379 | O11: 379
B12: 成長 | C12: 0 | D12: 0 | F12: 0 | G12: 0 | I12: 0 | J12: 4.1 | L12: 13.2 | M12: 39.7 | N12: 57 | O12: 57
A13: 3 | B13: 面積 | C13: 4.66 | D13: 1.15 | G13: 9.99 | I13: 15.8 | L13: 1.79 | M13: 35.89 | N13: 37.68 | O13: 53.48
B14: 蓄積 | C14: 558 | D14: 1504 | G14: 3581 | I14: 5643 | L14: 42 | M14: 875 | N14: 917 | O14: 6560
B15: 成長 | C15: 137.6 | D15: 276.8 | G15: 358.1 | I15: 772.5 | L15: 3.5 | M15: 79.4 | N15: 82.9 | O15: 855.4
A16: 4 | B16: 面積 | C16: 7.48 | D16: 17.07 | F16: 0.37 | G16: 4.7 | I16: 29.62 | J16: 8.19 | K16: 0.06 | L16: 1.39 | M16: 65.09 | N16: 74.73 | O16: 104.35
B17: 蓄積 | C17: 1176 | D17: 2084 | F17: 35 | G17: 550 | I17: 3845 | J17: 240 | K17: 1 | L17: 39 | M17: 2033 | N17: 2313 | O17: 6158
B18: 成長 | C18: 122.2 | D18: 207.2 | F18: 2.8 | G18: 37.9 | I18: 370.1 | J18: 11.2 | K18: 0.1 | L18: 2.5 | M18: 137.7 | N18: 151.5 | O18: 521.6
A19: 5 | B19: 面積 | C19: 17.74 | D19: 41.43 | F19: 4.08 | G19: 7.49 | H19: 5.92 | I19: 76.66 | J19: 1.75 | K19: 1.81 | L19: 14.17 | M19: 103.61 | N19: 121.34 | O19: 198
B20: 蓄積 | C20: 3879 | D20: 5208 | F20: 310 | G20: 986 | H20: 156 | I20: 10539 | J20: 110 | K20: 43 | L20: 572 | M20: 4170 | N20: 4895 | O20: 15434
B21: 成長 | C21: 271.6 | D21: 308.6 | F21: 16.2 | G21: 53.3 | H21: 10.8 | I21: 660.5 | J21: 3.6 | K21: 3.4 | L21: 29.4 | M21: 221.7 | N21: 258.1 | O21: 918.6
A22: 6 | B22: 面積 | C22: 85.41 | D22: 58.47 | F22: 5.9 | G22: 15.34 | H22: 17.34 | I22: 182.46 | J22: 2.44 | K22: 2.29 | L22: 44.95 | M22: 359.46 | N22: 409.14 | O22: 591.6
B23: 蓄積 | C23: 22092 | D23: 9150 | F23: 768 | G23: 2270 | H23: 1151 | I23: 35431 | J23: 181 | K23: 64 | L23: 2300 | M23: 17972 | N23: 20517 | O23: 55948
B24: 成長 | C24: 1064.9 | D24: 408.1 | F24: 29.2 | G24: 81.8 | H24: 62.2 | I24: 1646.2 | J24: 4 | K24: 4.2 | L24: 93 | M24: 722.5 | N24: 823.7 | O24: 2469.9
A25: 7 | B25: 面積 | C25: 270.52 | D25: 57.04 | F25: 8.34 | G25: 27.01 | H25: 27.75 | I25: 390.66 | J25: 11.11 | K25: 6.16 | L25: 67.84 | M25: 701.56 | N25: 786.67 | O25: 1177.33
B26: 蓄積 | C26: 80027 | D26: 10444 | F26: 1352 | G26: 4257 | H26: 1040 | I26: 97120 | J26: 861 | K26: 215 | L26: 4189 | M26: 40228 | N26: 45493 | O26: 142613
B27: 成長 | C27: 3015.4 | D27: 363.6 | F27: 32.6 | G27: 121.5 | H27: 45.8 | I27: 3578.9 | J27: 13.1 | K27: 12.4 | L27: 130.4 | M27: 1245.9 | N27: 1401.8 | O27: 4980.7
A28: 8 | B28: 面積 | C28: 585.34 | D28: 56.13 | F28: 12.79 | G28: 50.79 | H28: 16.68 | I28: 721.73 | J28: 17.89 | L28: 140.9 | M28: 655.13 | N28: 813.92 | O28: 1535.65
B29: 蓄積 | C29: 202210 | D29: 12540 | F29: 2041 | G29: 11218 | H29: 1187 | I29: 229196 | J29: 1364 | L29: 9993 | M29: 44192 | N29: 55549 | O29: 284745
B30: 成長 | C30: 6636.9 | D30: 348.8 | F30: 43 | G30: 259.8 | H30: 44.1 | I30: 7332.6 | J30: 11.4 | L30: 302.9 | M30: 1337.6 | N30: 1651.9 | O30: 8984.5
A31: 9 | B31: 面積 | C31: 1317.59 | D31: 119.05 | F31: 81.5 | G31: 70.72 | H31: 56.02 | I31: 1644.88 | J31: 17.15 | K31: 10.6 | L31: 143.88 | M31: 682.95 | N31: 854.58 | O31: 2499.46
B32: 蓄積 | C32: 530080 | D32: 27443 | F32: 16002 | G32: 15436 | H32: 5324 | I32: 594285 | J32: 1499 | K32: 817 | L32: 11555 | M32: 52417 | N32: 66288 | O32: 660573
B33: 成長 | C33: 12209.2 | D33: 625.4 | F33: 243.4 | G33: 337.9 | H33: 170.3 | I33: 13586.2 | J33: 7.5 | K33: 28.6 | L33: 322.6 | M33: 1457 | N33: 1815.7 | O33: 15401.9
A34: 10 | B34: 面積 | C34: 1444.46 | D34: 120.75 | F34: 183.78 | G34: 356.44 | H34: 65.84 | I34: 2171.27 | J34: 11.39 | K34: 1.5 | L34: 62.06 | M34: 614.45 | N34: 689.4 | O34: 2860.67
B35: 蓄積 | C35: 623637 | D35: 26001 | F35: 37100 | G35: 82391 | H35: 5983 | I35: 775112 | J35: 1016 | K35: 126 | L35: 5725 | M35: 53116 | N35: 59983 | O35: 835095
B36: 成長 | C36: 10715.6 | D36: 477.4 | F36: 490.6 | G36: 1275.4 | H36: 165.3 | I36: 13124.3 | J36: 1.5 | K36: 3.5 | L36: 145.8 | M36: 1350.4 | N36: 1501.2 | O36: 14625.5
A37: 11 | B37: 面積 | C37: 2094.22 | D37: 95.02 | F37: 367.18 | G37: 665.66 | H37: 21.06 | I37: 3243.14 | J37: 14.9 | K37: 5.02 | L37: 63.56 | M37: 1040.72 | N37: 1124.2 | O37: 4367.34
B38: 蓄積 | C38: 973549 | D38: 22553 | F38: 76971 | G38: 170957 | H38: 2216 | I38: 1246246 | J38: 1313 | K38: 470 | L38: 6476 | M38: 98029 | N38: 106288 | O38: 1352534 | P38: 伐 跡 | R38: 64.74
B39: 成長 | C39: 11906.2 | D39: 367.3 | F39: 858.5 | G39: 2410.6 | H39: 52.7 | I39: 15595.3 | J39: 0 | K39: 11.3 | L39: 129 | M39: 1913.4 | N39: 2053.7 | O39: 17649 | P39: 未立木地 | R39: 1393.41
A40: 12 | B40: 面積 | C40: 2608.1 | D40: 9.58 | F40: 752.29 | G40: 2286.27 | H40: 22.63 | I40: 5678.87 | J40: 29.09 | K40: 6.7 | L40: 100.07 | M40: 1765.04 | N40: 1900.9 | O40: 7579.77 | P40: 岩石地 | R40: 643.44
B41: 蓄積 | C41: 1292175 | D41: 2558 | F41: 161868 | G41: 643010 | H41: 2296 | I41: 2101907 | J41: 2600 | K41: 497 | L41: 10909 | M41: 183092 | N41: 197098 | O41: 2299005 | P41: 崩壊地 | R41: 510.44
B42: 成長 | C42: 14287.2 | D42: 35.7 | F42: 1523.3 | G42: 8364.4 | H42: 43.7 | I42: 24254.3 | J42: 0 | K42: 11.9 | L42: 206.4 | M42: 3375.1 | N42: 3593.4 | O42: 27847.7 | P42: はげ山 | R42: 4.17
A43: 13 | B43: 面積 | C43: 2802.87 | D43: 6.21 | E43: 0.13 | F43: 717.05 | G43: 5497.33 | H43: 12.87 | I43: 9036.46 | J43: 117.15 | K43: 7.7 | L43: 331.94 | M43: 3907.4 | N43: 4364.19 | O43: 13400.65 | P43: 施設敷 | R43: 129.83
B44: 蓄積 | C44: 1448454 | D44: 1631 | E44: 32 | F44: 162300 | G44: 1578485 | H44: 2290 | I44: 3193192 | J44: 10264 | K44: 847 | L44: 39054 | M44: 440938 | N44: 491103 | O44: 3684295 | P44: 林地開発 | R44: 84.08
B45: 成長 | C45: 14803.6 | D45: 21.4 | E45: 0.4 | F45: 1445.3 | G45: 19737.7 | H45: 41 | I45: 36049.4 | J45: 0 | K45: 18.6 | L45: 555.3 | M45: 6265.5 | N45: 6839.4 | O45: 42888.8 | P45: 計 | R45: =SUM(R38:R44) -> 2830.11
A46: 14 | B46: 面積 | C46: 1955.13 | D46: 11.8 | E46: 0.26 | F46: 563.48 | G46: 4354.46 | H46: 6.04 | I46: 6891.17 | J46: 311.8 | K46: 2.89 | L46: 602.62 | M46: 6571.81 | N46: 7489.12 | O46: 14380.29 | P46: 竹 林 | R46: 160.59
B47: 蓄積 | C47: 1040924 | D47: 3301 | E47: 75 | F47: 133689 | G47: 1308907 | H47: 959 | I47: 2487855 | J47: 27290 | K47: 117 | L47: 73920 | M47: 772582 | N47: 873909 | O47: 3361764 | P47: 更新 困難地 | Q47: 面積 | R47: 16.95
B48: 成長 | C48: 8549.2 | D48: 35.8 | E48: 0.8 | F48: 938.4 | G48: 13356 | H48: 15.1 | I48: 22895.3 | J48: 0 | K48: 2.1 | L48: 750.1 | M48: 7939.8 | N48: 8692 | O48: 31587.3 | Q48: 蓄積 | R48: 2856
A49: 15 以上 | B49: 面積 | C49: 3457.48 | D49: 217.05 | E49: 1.71 | F49: 3358.15 | G49: 3751.36 | H49: 566.62 | I49: 11352.37 | J49: 390.91 | K49: 478.1 | L49: 1182.94 | M49: 15897.92 | N49: 17949.87 | O49: 29302.24 | Q49: 成長 | R49: 15.3
B50: 蓄積 | C50: 1986304 | D50: 61658 | E50: 517 | F50: 823231 | G50: 1171167 | H50: 117203 | I50: 4160080 | J50: 33802 | K50: 67740 | L50: 151519 | M50: 1947240 | N50: 2200301 | O50: 6360381
B51: 成長 | C51: 7106.3 | D51: 40.7 | E51: 1.2 | F51: 2561.2 | G51: 5819.4 | H51: 358.6 | I51: 15887.4 | J51: 0 | K51: 59.3 | L51: 819.2 | M51: 8432.7 | N51: 9311.2 | O51: 25198.6 | P51: 総 合 計
A52: 計 | B52: 面積 | C52: =SUM(C7,C10,C13,C16,C19,C22,C25,C28,C31,C34,C37,C40,C43,C46,C49) -> 16665.24 | D52: 814.82 | E52: 2.1 | F52: 6056.58 | G52: 17154.94 | H52: 818.77 | I52: =SUM(C52:H52) -> 41512.45 | J52: =SUM(J7,J10,J13,J16,J19,J22,J25,J28,J31,J34,J37,J40,J43,J46,J49) -> 934.48 | K52: =SUM(K7,K10,K13,K16,K19,K22,K25,K28,K31,K34,K37,K40,K43,K46,K49) -> 522.83 | L52: =SUM(L7,L10,L13,L16,L19,L22,L25,L28,L31,L34,L37,L40,L43,L46,L49) -> 2769.32 | M52: =SUM(M7,M10,M13,M16,M19,M22,M25,M28,M31,M34,M37,M40,M43,M46,M49) -> 32435.49 | N52: =SUM(J52:M52) -> 36662.12 | O52: =SUM(N52,I52) -> 78174.57 | P52: 面 積 | R52: =SUM(O52,R45,R47,R46) -> 81182.22
B53: 蓄積 | C53: 8205065 | D53: 186075 | E53: 624 | F53: 1415667 | G53: 4993215 | H53: 139805 | I53: =SUM(C53:H53) -> 14940451 | J53: =SUM(J8,J11,J14,J17,J20,J23,J26,J29,J32,J35,J38,J41,J44,J47,J50) -> 80553 | K53: 70937 | L53: 316386 | M53: 3657157 | N53: =SUM(J53:M53) -> 4125033 | O53: 19065484 | P53: 蓄 積 | R53: =O53+R48 -> 19068340
B54: 成長 | C54: 90825.9 | D54: 3516.8 | E54: 2.4 | F54: 8184.5 | G54: 52213.8 | H54: 1009.6 | I54: =SUM(C54:H54) -> 155753 | J54: 56.4 | K54: 155.4 | L54: 3503.3 | M54: 34518.4 | N54: =SUM(J54:M54) -> 38233.5 | O54: 193986.5 | P54: 成長量 | R54: =O54+R49 -> 194001.8

Sheet 北信
A1: 第4表 地域振興局別・資源構成表
A3: 北信地域振興局 | O3: 単位 面積 : ha、蓄積 成長量 : ㎥
B4: 樹種 | C4: 針 葉 樹 | J4: 広 葉 樹 | O4: 計
C5: ス ギ | D5: ヒ ノ キ | E5: サ ワ ラ | F5: ア カ マ ツ | G5: カ ラ マ ツ | H5: そ の 他 針 | I5: 小 計 | J5: ク ヌ ギ | K5: ブ ナ | L5: ナ ラ | M5: そ の 他 広 | N5: 小 計
A6: 齢級
A7: 1 | B7: 面積 | C7: 1.1 | G7: 3.33 | I7: 4.43 | M7: 1.68 | N7: 1.68 | O7: 6.11
B8: 蓄積 | C8: 0 | G8: 0 | I8: 0 | M8: 0 | N8: 0 | O8: 0
B9: 成長 | C9: 0 | G9: 0 | I9: 0 | M9: 0 | N9: 0 | O9: 0
A10: 2 | B10: 面積 | C10: 8.61 | F10: 0.03 | I10: 8.64 | M10: 8.54 | N10: 8.54 | O10: 17.18
B11: 蓄積 | C11: 0 | F11: 0 | I11: 0 | M11: 106 | N11: 106 | O11: 106
B12: 成長 | C12: 0 | F12: 0 | I12: 0 | M12: 15.2 | N12: 15.2 | O12: 15.2
A13: 3 | B13: 面積 | C13: 7.07 | F13: 0.09 | G13: 12.8 | I13: 19.96 | K13: 2.38 | M13: 32 | N13: 34.38 | O13: 54.34
B14: 蓄積 | C14: 805 | F14: 6 | G14: 667 | I14: 1478 | K14: 21 | M14: 785 | N14: 806 | O14: 2284
B15: 成長 | C15: 139.5 | F15: 0.8 | G15: 66.7 | I15: 207 | K15: 2.2 | M15: 68.5 | N15: 70.7 | O15: 277.7
A16: 4 | B16: 面積 | C16: 14.84 | F16: 0.32 | G16: 0.02 | I16: 15.18 | K16: 0.09 | L16: 2 | M16: 63.42 | N16: 65.51 | O16: 80.69
B17: 蓄積 | C17: 2375 | F17: 27 | G17: 2 | I17: 2404 | K17: 2 | L17: 64 | M17: 2023 | N17: 2089 | O17: 4493
B18: 成長 | C18: 258.3 | F18: 2.2 | G18: 0.1 | I18: 260.6 | K18: 0.2 | L18: 4.3 | M18: 136.8 | N18: 141.3 | O18: 401.9
A19: 5 | B19: 面積 | C19: 59.01 | D19: 0.25 | F19: 0.21 | G19: 1.17 | I19: 60.64 | J19: 0.46 | K19: 9.3 | L19: 4.17 | M19: 115.61 | N19: 129.54 | O19: 190.18
B20: 蓄積 | C20: 13104 | D20: 99 | F20: 26 | G20: 154 | I20: 13383 | J20: 29 | K20: 257 | L20: 181 | M20: 4443 | N20: 4910 | O20: 18293
B21: 成長 | C21: 911.3 | D21: 5.9 | F21: 1.4 | G21: 8.3 | I21: 926.9 | J21: 0.8 | K21: 20.5 | L21: 9.7 | M21: 234 | N21: 265 | O21: 1191.9
A22: 6 | B22: 面積 | C22: 139.31 | D22: 0.67 | F22: 0.76 | G22: 0.59 | H22: 0.36 | I22: 141.69 | J22: 0.21 | K22: 0.26 | L22: 10.13 | M22: 232.53 | N22: 243.13 | O22: 384.82
B23: 蓄積 | C23: 33310 | D23: 96 | F23: 107 | G23: 91 | H23: 22 | I23: 33626 | J23: 16 | K23: 88 | L23: 538 | M23: 11985 | N23: 12627 | O23: 46253
B24: 成長 | C24: 1684.4 | D24: 4.2 | F24: 3.9 | G24: 3.3 | H24: 1.3 | I24: 1697.1 | J24: 0.4 | K24: 5.8 | L24: 21.9 | M24: 488 | N24: 516.1 | O24: 2213.2
A25: 7 | B25: 面積 | C25: 210 | D25: 0.15 | F25: 0.5 | G25: 3.76 | H25: 0.11 | I25: 214.52 | J25: 0.39 | K25: 5.86 | L25: 16.5 | M25: 279.79 | N25: 302.54 | O25: 517.06
B26: 蓄積 | C26: 64721 | D26: 24 | F26: 83 | G26: 642 | H26: 11 | I26: 65481 | J26: 31 | K26: 169 | L26: 1060 | M26: 16747 | N26: 18007 | O26: 83488
B27: 成長 | C27: 2560.2 | D27: 0.8 | F27: 2 | G27: 17.7 | H27: 0.5 | I27: 2581.2 | J27: 0.4 | K27: 9.6 | L27: 33.1 | M27: 520.3 | N27: 563.4 | O27: 3144.6
A28: 8 | B28: 面積 | C28: 466.83 | F28: 1.37 | G28: 31 | I28: 499.2 | J28: 3.39 | K28: 11.97 | L28: 44.69 | M28: 331.08 | N28: 391.13 | O28: 890.33
B29: 蓄積 | C29: 163303 | F29: 222 | G29: 5188 | I29: 168713 | J29: 292 | K29: 651 | L29: 3188 | M29: 23061 | N29: 27192 | O29: 195905
B30: 成長 | C30: 5371.7 | F30: 4.4 | G30: 129.2 | I30: 5505.3 | J30: 3.2 | K30: 27.6 | L30: 95.4 | M30: 695.1 | N30: 821.3 | O30: 6326.6
A31: 9 | B31: 面積 | C31: 795.14 | D31: 6.18 | F31: 5.6 | G31: 35.53 | I31: 842.45 | J31: 2.52 | K31: 3.02 | L31: 44.57 | M31: 420.53 | N31: 470.64 | O31: 1313.09
B32: 蓄積 | C32: 307714 | D32: 1021 | F32: 1128 | G32: 6481 | I32: 316344 | J32: 223 | K32: 216 | L32: 3607 | M32: 32887 | N32: 36933 | O32: 353277
B33: 成長 | C33: 7184.2 | D33: 27.2 | F33: 16.9 | G33: 126.8 | I33: 7355.1 | J33: 1.2 | K33: 7.7 | L33: 100.9 | M33: 915.4 | N33: 1025.2 | O33: 8380.3
A34: 10 | B34: 面積 | C34: 1073.46 | D34: 0.61 | F34: 36.28 | G34: 32.59 | H34: 7.06 | I34: 1150 | J34: 1.89 | K34: 56.22 | L34: 28.81 | M34: 397.02 | N34: 483.94 | O34: 1633.94
B35: 蓄積 | C35: 452520 | D35: 138 | F35: 7355 | G35: 7469 | H35: 620 | I35: 468102 | J35: 169 | K35: 3112 | L35: 2624 | M35: 32753 | N35: 38658 | O35: 506760
B36: 成長 | C36: 7848.8 | D36: 2.5 | F36: 95.7 | G36: 116.3 | H36: 17.3 | I36: 8080.6 | J36: 0.3 | K36: 96 | L36: 67.6 | M36: 833.8 | N36: 997.7 | O36: 9078.3
A37: 11 | B37: 面積 | C37: 1463.43 | D37: 0.11 | F37: 37.49 | G37: 81.92 | H37: 11.09 | I37: 1594.04 | J37: 2.12 | K37: 71.55 | L37: 19.67 | M37: 2071.96 | N37: 2165.3 | O37: 3759.34
B38: 蓄積 | C38: 665149 | D38: 28 | F38: 7302 | G38: 22377 | H38: 490 | I38: 695346 | J38: 191 | K38: 4033 | L38: 2041 | M38: 139686 | N38: 145951 | O38: 841297 | P38: 伐 跡 | R38: 24.19
B39: 成長 | C39: 8273.6 | D39: 0.4 | F39: 82.3 | G39: 317.3 | H39: 11.3 | I39: 8684.9 | J39: 0 | K39: 108 | L39: 40.9 | M39: 2592.8 | N39: 2741.7 | O39: 11426.6 | P39: 未立木地 | R39: 409.18
A40: 12 | B40: 面積 | C40: 1813.1 | F40: 43.11 | G40: 449.34 | H40: 43.12 | I40: 2348.67 | J40: 0.48 | K40: 143.8 | L40: 30.42 | M40: 1810.63 | N40: 1985.33 | O40: 4334 | P40: 岩石地 | R40: 89.88
B41: 蓄積 | C41: 896415 | F41: 9894 | G41: 125395 | H41: 4428 | I41: 1036132 | J41: 45 | K41: 13747 | L41: 3330 | M41: 152408 | N41: 169530 | O41: 1205662 | P41: 崩壊地 | R41: 176.41
B42: 成長 | C42: 9912.9 | F42: 89.5 | G42: 1639.6 | H42: 84.1 | I42: 11726.1 | J42: 0 | K42: 307.8 | L42: 62.2 | M42: 2698.3 | N42: 3068.3 | O42: 14794.4 | P42: はげ山 | R42: 22.67
A43: 13 | B43: 面積 | C43: 1693.37 | D43: 0.22 | F43: 73.64 | G43: 875.15 | H43: 152.86 | I43: 2795.24 | J43: 5.56 | K43: 438.94 | L43: 58.15 | M43: 2846.03 | N43: 3348.68 | O43: 6143.92 | P43: 施設敷 | R43: 110.1
B44: 蓄積 | C44: 885896 | D44: 63 | F44: 16772 | G44: 255690 | H44: 19404 | I44: 1177825 | J44: 515 | K44: 34188 | L44: 6883 | M44: 290467 | N44: 332053 | O44: 1509878 | P44: 林地開発 | R44: 90.55
B45: 成長 | C45: 9143.6 | D45: 0.7 | F45: 151.1 | G45: 3179.7 | H45: 351.4 | I45: 12826.5 | J45: 0 | K45: 780.2 | L45: 106.5 | M45: 4195 | N45: 5081.7 | O45: 17908.2 | P45: 計 | R45: =SUM(R38:R44) -> 922.98
A46: 14 | B46: 面積 | C46: 1429.52 | D46: 0.04 | F46: 91.36 | G46: 814.7 | H46: 43.15 | I46: 2378.77 | J46: 7.4 | K46: 255.65 | L46: 157.4 | M46: 3879 | N46: 4299.45 | O46: 6678.22 | P46: 竹 林 | R46: 1.94
B47: 蓄積 | C47: 769615 | D47: 12 | F47: 22832 | G47: 245827 | H47: 5068 | I47: 1043354 | J47: 674 | K47: 28185 | L47: 19492 | M47: 432641 | N47: 480992 | O47: 1524346 | P47: 更新 困難地 | Q47: 面積 | R47: 31.51
B48: 成長 | C48: 6404.3 | D48: 0.1 | F48: 157.8 | G48: 2521.3 | H48: 81.6 | I48: 9165.1 | J48: 0 | K48: 520.9 | L48: 199.7 | M48: 4649.1 | N48: 5369.7 | O48: 14534.8 | Q48: 蓄積 | R48: 4596
A49: 15 以上 | B49: 面積 | C49: 2864.12 | D49: 38.45 | F49: 343.34 | G49: 698.2 | H49: 2118.13 | I49: 6062.24 | J49: 11.86 | K49: 2228.96 | L49: 366.21 | M49: 13573.45 | N49: 16180.48 | O49: 22242.72 | Q49: 成長 | R49: 3.5
B50: 蓄積 | C50: 1651274 | D50: 10553 | F50: 91903 | G50: 225407 | H50: 402016 | I50: 2381153 | J50: 1105 | K50: 301001 | L50: 45010 | M50: 1495480 | N50: 1842596 | O50: 4223749
B51: 成長 | C51: 6524.8 | D51: 0.5 | F51: 334.1 | G51: 1040.6 | H51: 539.4 | I51: 8439.4 | J51: 0 | K51: 1610.4 | L51: 114.6 | M51: 4965.9 | N51: 6690.9 | O51: 15130.3 | P51: 総 合 計
A52: 計 | B52: 面積 | C52: =SUM(C7,C10,C13,C16,C19,C22,C25,C28,C31,C34,C37,C40,C43,C46,C49) -> 12038.91 | D52: 46.68 | E52: 0 | F52: 634.1 | G52: 3040.1 | H52: 2375.88 | I52: =SUM(C52:H52) -> 18135.67 | J52: =SUM(J7,J10,J13,J16,J19,J22,J25,J28,J31,J34,J37,J40,J43,J46,J49) -> 36.28 | K52: =SUM(K7,K10,K13,K16,K19,K22,K25,K28,K31,K34,K37,K40,K43,K46,K49) -> 3228 | L52: =SUM(L7,L10,L13,L16,L19,L22,L25,L28,L31,L34,L37,L40,L43,L46,L49) -> 782.72 | M52: =SUM(M7,M10,M13,M16,M19,M22,M25,M28,M31,M34,M37,M40,M43,M46,M49) -> 26063.27 | N52: =SUM(J52:M52) -> 30110.27 | O52: =SUM(N52,I52) -> 48245.94 | P52: 面 積 | R52: =SUM(O52,R45,R47,R46) -> 49202.37
B53: 蓄積 | C53: 5906201 | D53: 12034 | E53: 0 | F53: 157657 | G53: 895390 | H53: 432059 | I53: =SUM(C53:H53) -> 7403341 | J53: =SUM(J8,J11,J14,J17,J20,J23,J26,J29,J32,J35,J38,J41,J44,J47,J50) -> 3290 | K53: 385670 | L53: 88018 | M53: 2635472 | N53: =SUM(J53:M53) -> 3112450 | O53: 10515791 | P53: 蓄 積 | R53: =O53+R48 -> 10520387
B54: 成長 | C54: 66217.6 | D54: 42.3 | E54: 0 | F54: 942.1 | G54: 9166.9 | H54: 1086.9 | I54: =SUM(C54:H54) -> 77455.8 | J54: 6.3 | K54: 3496.9 | L54: 856.8 | M54: 23008.2 | N54: =SUM(J54:M54) -> 27368.2 | O54: 104824 | P54: 成長量 | R54: =O54+R49 -> 104827.5
